Workbook

Sheet Amortizacija kalorij
B1: RAZPORED AMORTIZACIJE KALORIJ
B2: =IFERROR(CONCATENATE("SAMO ŠE ",DATEDIF(DatumZačetka,DatumKonca,"m")," MESECI IN ", DATEDIF(DatumZačetka,DatumKonca,"md"),ŠtDneva),"") -> SAMO ŠE 3 MESECI IN 14 DNI | H2: =IF(ŽelenaTeža="POVEČAJ","Ni priporočljivo, da zmanjšate vnos kalorij za več kot 1000 kalorij manj, kot so dnevne potrebe po kalorijah, ali zaužijete manj kot " & IF(Spol="ŽENSKA","1200 kalorij na dan.","1800 kalorij na dan."),"") -> Ni priporočljivo, da zmanjšate vnos kalorij za več kot 1000 kalorij manj, kot so dnevne potrebe po kalorijah, ali zaužijete manj kot 1200 kalorij na dan.
B3: =IF(ŽelenaTeža="Ohrani",""," DOKLER NE DOSEŽETE SVOJEGA CILJA!") -> DOKLER NE DOSEŽETE SVOJEGA CILJA! | H3: =IF(ŽelenaTeža="Ohrani","",CONCATENATE("Datum cilja temelji na povprečni ",IF(ŽelenaTeža="POVEČAJ","izgubi telesne teže ","pridobljena teža "),IF(MerskaEnota="IMPERIALNI","1 lb",".45 k")," na teden.")) -> Datum cilja temelji na povprečni izgubi telesne teže 1 lb na teden.
B4: STOPNJA AKTIVNOSTI | H4: MERSKI SISTEM | J4: TRENUTNA TEŽA | L4: STAROST
B5: ZMERNA AKTIVNOST | E5: =VLOOKUP(Raven,VrsteVaje[],2,FALSE) -> VADBA 3–5 DNI/TEDEN | H5: IMPERIALNI | J5: 150.0 | L5: 34
B6: MOJA ŽELENA TEŽA JE | H6: =IF(Standardno,"VIŠINA V FT","VIŠINA V M") -> VIŠINA V FT | I6: =IF(Standardno,"PALCI","CENTIMETRI") -> PALCI | J6: CILJNA TEŽA | L6: SPOL
B7: POVEČAJ | H7: 5 | I7: 5.0 | J7: 135.0 | L7: ŽENSKA
B8: ZAČETNI DATUM CILJA | E8: CILJNI DATUM CILJA | H8: ZAČETNE DNEVNE POTREBE PO KALORIJAH | J8: ZAČETNI DNEVNI VNOS KALORIJ | L8: =IF(ŽelenaTeža="Znižaj","POTREBNE DODATNE KALORIJE","KALORIJE, KI JIH JE TREBA PORABITI") -> KALORIJE, KI JIH JE TREBA PORABITI
B9: =TODAY()-5 -> 2022-08-14 | E9: =IF(ŽelenaTeža="Ohrani","",IF(AND(VseDokončano,B12<>""),MAX(B11:B998),"Ciljni datum ne sme biti pred začetnim datumom. Preverite svoje vnose.")) -> 2022-11-28 | H9: =IF(VseDokončano,BazalniMetabolizem*FaktorAktivnosti,"") -> 2252 | J9: =IF(VseDokončano,BazalniMetabolizem*FaktorAktivnosti+IF(ŽelenaTeža="Ohrani",0,IF(ŽelenaTeža="POVEČAJ",-500,IF(ŽelenaTeža="Znižaj",500))),"") -> 1752 | L9: =IF(ŽelenaTeža="Ohrani","",(ŽelenaIzgubljenaInPridobljenaTeža)*IF(Standardno,1,2.2)*3500) -> 52500
B10: DATUM | C10: TEDEN | D10: DAN | E10: TEŽA | F10: BazalniMetabolizem | G10: ZAUŽITE KALORIJE | H10: PORABLJENE KALORIJE | I10: =IF(ŽelenaTeža="Znižaj", "DODATEN KALORIJE","PRIMANJKLJAJ KALORIJ") -> PRIMANJKLJAJ KALORIJ | J10: PREOSTALE KALORIJE | K10: =IF(MerskaEnota="IMPERIALNI","PREOSTALI LBS","PREOSTALI KG") -> PREOSTALI LBS | L10: =IF(ŽelenaTeža="Znižaj","PRIDOBLJENA TEŽA","IZGUBLJENA TEŽA") -> IZGUBLJENA TEŽA | M10: % CILJA
B11: =IFERROR(IF(Ohrani,"",DatumZačetka), "") -> 2022-08-14 | C11: =IFERROR(IF(Ohrani,"",1), "") -> 1 | D11: =IFERROR(IF(AND(ISNUMBER(J11),J11>0),1,""), "") -> 1 | E11: =IFERROR(IF(Ohrani,"",Teža), "") -> 150.0 | F11: =IFERROR(IF(Ohrani,"",IF(E11>0,BazalniMetabolizemTek,"")), "") -> 1453 | G11: =IFERROR(IF(Ohrani,"",ZačetniVnosKalorij), "") -> 1752 | H11: =IFERROR(F11*(FaktorAktivnosti),"") -> 2252 | I11: =IFERROR(IF(ŽelenaTeža="Znižaj",G11-H11,H11-G11),"") -> 500 | J11: =IFERROR(L9, "") -> 52500 | K11: =IFERROR(IF(Standardno,J11/KalorijeNaFunt,J11/KalorijeNaFunt/2.2),"") -> 15.0 | L11: =IFERROR(ŽelenaIzgubljenaInPridobljenaTeža-K11,"") -> 0.00 | M11: =IFERROR(IF(Ohrani,"",0%), "") -> 0%
B12: =IFERROR(IF(K11>0,B11+1,""),"") -> 2022-08-15 | C12: =IFERROR(IF(D12<>"",IF(MOD(D12,7)=1,(D11/7)+1,""),""),"") ->  | D12: =IFERROR(IF(K11>0,D11+1,""),"") -> 2 | E12: =IFERROR(IF($D12<>"",E11-(I11/KalorijeNaFunt),""),"") -> 149.9 | F12: =IFERROR(BazalniMetabolizemTek,"") -> 1453 | G12: =IFERROR(IF(K11>0,F11*FaktorAktivnosti+IF(ŽelenaTeža="Ohrani",0,IF(ŽelenaTeža="POVEČAJ",-500,IF(ŽelenaTeža="Znižaj",500))),""),"") -> 1752 | H12: =IFERROR(F12*(FaktorAktivnosti),"") -> 2251 | I12: =IFERROR(IF(ŽelenaTeža="Znižaj",G12-H12,H12-G12),"") -> 499 | J12: =IFERROR(J11-I12,"") -> 52001 | K12: =IFERROR(IF(Standardno,J12/KalorijeNaFunt,J12/KalorijeNaFunt/2.2),"") -> 14.9 | L12: =IFERROR(ŽelenaIzgubljenaInPridobljenaTeža-K12,"") -> 0.14 | M12: =IFERROR(IF(B11<>"",L12/(ŽelenaIzgubljenaInPridobljenaTeža),""),"") -> 1%
B13: 2022-08-16 | C13: =IFERROR(IF(D13<>"",IF(MOD(D13,7)=1,(D12/7)+1,""),""),"") ->  | D13: 3 | E13: 149.7 | F13: =IFERROR(BazalniMetabolizemTek,"") -> 1452 | G13: =IFERROR(IF(K12>0,F12*FaktorAktivnosti+IF(ŽelenaTeža="Ohrani",0,IF(ŽelenaTeža="POVEČAJ",-500,IF(ŽelenaTeža="Znižaj",500))),""),"") -> 1751 | H13: =IFERROR(F13*(FaktorAktivnosti),"") -> 2251 | I13: =IFERROR(IF(ŽelenaTeža="Znižaj",G13-H13,H13-G13),"") -> 499 | J13: =IFERROR(J12-I13,"") -> 51502 | K13: =IFERROR(IF(Standardno,J13/KalorijeNaFunt,J13/KalorijeNaFunt/2.2),"") -> 14.7 | L13: =IFERROR(ŽelenaIzgubljenaInPridobljenaTeža-K13,"") -> 0.29 | M13: =IFERROR(IF(B12<>"",L13/(ŽelenaIzgubljenaInPridobljenaTeža),""),"") -> 2%
B14: 2022-08-17 | D14: 4 | E14: 149.6 | F14: =IFERROR(BazalniMetabolizemTek,"") -> 1451 | G14: =IFERROR(IF(K13>0,F13*FaktorAktivnosti+IF(ŽelenaTeža="Ohrani",0,IF(ŽelenaTeža="POVEČAJ",-500,IF(ŽelenaTeža="Znižaj",500))),""),"") -> 1751 | H14: =IFERROR(F14*(FaktorAktivnosti),"") -> 2250 | I14: =IFERROR(IF(ŽelenaTeža="Znižaj",G14-H14,H14-G14),"") -> 499 | J14: 51003 | K14: =IFERROR(IF(Standardno,J14/KalorijeNaFunt,J14/KalorijeNaFunt/2.2),"") -> 14.6 | L14: =IFERROR(ŽelenaIzgubljenaInPridobljenaTeža-K14,"") -> 0.43 | M14: =IFERROR(IF(B13<>"",L14/(ŽelenaIzgubljenaInPridobljenaTeža),""),"") -> 3%
B15: 2022-08-18 | D15: 5 | E15: 149.4 | F15: =IFERROR(BazalniMetabolizemTek,"") -> 1451 | G15: =IFERROR(IF(K14>0,F14*FaktorAktivnosti+IF(ŽelenaTeža="Ohrani",0,IF(ŽelenaTeža="POVEČAJ",-500,IF(ŽelenaTeža="Znižaj",500))),""),"") -> 1750 | H15: =IFERROR(F15*(FaktorAktivnosti),"") -> 2249 | I15: =IFERROR(IF(ŽelenaTeža="Znižaj",G15-H15,H15-G15),"") -> 499 | J15: 50504 | K15: =IFERROR(IF(Standardno,J15/KalorijeNaFunt,J15/KalorijeNaFunt/2.2),"") -> 14.4 | L15: =IFERROR(ŽelenaIzgubljenaInPridobljenaTeža-K15,"") -> 0.57 | M15: =IFERROR(IF(B14<>"",L15/(ŽelenaIzgubljenaInPridobljenaTeža),""),"") -> 4%
B16: 2022-08-19 | D16: 6 | E16: 149.3 | F16: =IFERROR(BazalniMetabolizemTek,"") -> 1450 | G16: =IFERROR(IF(K15>0,F15*FaktorAktivnosti+IF(ŽelenaTeža="Ohrani",0,IF(ŽelenaTeža="POVEČAJ",-500,IF(ŽelenaTeža="Znižaj",500))),""),"") -> 1749 | H16: =IFERROR(F16*(FaktorAktivnosti),"") -> 2248 | I16: =IFERROR(IF(ŽelenaTeža="Znižaj",G16-H16,H16-G16),"") -> 499 | J16: 50005 | K16: =IFERROR(IF(Standardno,J16/KalorijeNaFunt,J16/KalorijeNaFunt/2.2),"") -> 14.3 | L16: =IFERROR(ŽelenaIzgubljenaInPridobljenaTeža-K16,"") -> 0.71 | M16: =IFERROR(IF(B15<>"",L16/(ŽelenaIzgubljenaInPridobljenaTeža),""),"") -> 5%
B17: 2022-08-20 | D17: 7 | E17: 149.1 | F17: =IFERROR(BazalniMetabolizemTek,"") -> 1449 | G17: =IFERROR(IF(K16>0,F16*FaktorAktivnosti+IF(ŽelenaTeža="Ohrani",0,IF(ŽelenaTeža="POVEČAJ",-500,IF(ŽelenaTeža="Znižaj",500))),""),"") -> 1748 | H17: =IFERROR(F17*(FaktorAktivnosti),"") -> 2247 | I17: =IFERROR(IF(ŽelenaTeža="Znižaj",G17-H17,H17-G17),"") -> 499 | J17: 49506 | K17: =IFERROR(IF(Standardno,J17/KalorijeNaFunt,J17/KalorijeNaFunt/2.2),"") -> 14.1 | L17: =IFERROR(ŽelenaIzgubljenaInPridobljenaTeža-K17,"") -> 0.86 | M17: =IFERROR(IF(B16<>"",L17/(ŽelenaIzgubljenaInPridobljenaTeža),""),"") -> 6%
B18: 2022-08-21 | C18: 2 | D18: 8 | E18: 149.0 | F18: =IFERROR(BazalniMetabolizemTek,"") -> 1449 | G18: =IFERROR(IF(K17>0,F17*FaktorAktivnosti+IF(ŽelenaTeža="Ohrani",0,IF(ŽelenaTeža="POVEČAJ",-500,IF(ŽelenaTeža="Znižaj",500))),""),"") -> 1747 | H18: =IFERROR(F18*(FaktorAktivnosti),"") -> 2246 | I18: =IFERROR(IF(ŽelenaTeža="Znižaj",G18-H18,H18-G18),"") -> 499 | J18: 49007 | K18: =IFERROR(IF(Standardno,J18/KalorijeNaFunt,J18/KalorijeNaFunt/2.2),"") -> 14.0 | L18: =IFERROR(ŽelenaIzgubljenaInPridobljenaTeža-K18,"") -> 1.00 | M18: =IFERROR(IF(B17<>"",L18/(ŽelenaIzgubljenaInPridobljenaTeža),""),"") -> 7%
B19: 2022-08-22 | D19: 9 | E19: 148.9 | F19: =IFERROR(BazalniMetabolizemTek,"") -> 1448 | G19: =IFERROR(IF(K18>0,F18*FaktorAktivnosti+IF(ŽelenaTeža="Ohrani",0,IF(ŽelenaTeža="POVEČAJ",-500,IF(ŽelenaTeža="Znižaj",500))),""),"") -> 1746 | H19: =IFERROR(F19*(FaktorAktivnosti),"") -> 2245 | I19: =IFERROR(IF(ŽelenaTeža="Znižaj",G19-H19,H19-G19),"") -> 499 | J19: 48508 | K19: =IFERROR(IF(Standardno,J19/KalorijeNaFunt,J19/KalorijeNaFunt/2.2),"") -> 13.9 | L19: =IFERROR(ŽelenaIzgubljenaInPridobljenaTeža-K19,"") -> 1.14 | M19: =IFERROR(IF(B18<>"",L19/(ŽelenaIzgubljenaInPridobljenaTeža),""),"") -> 8%
B20: 2022-08-23 | D20: 10 | E20: 148.7 | F20: =IFERROR(BazalniMetabolizemTek,"") -> 1448 | G20: =IFERROR(IF(K19>0,F19*FaktorAktivnosti+IF(ŽelenaTeža="Ohrani",0,IF(ŽelenaTeža="POVEČAJ",-500,IF(ŽelenaTeža="Znižaj",500))),""),"") -> 1745 | H20: =IFERROR(F20*(FaktorAktivnosti),"") -> 2244 | I20: =IFERROR(IF(ŽelenaTeža="Znižaj",G20-H20,H20-G20),"") -> 499 | J20: 48009 | K20: =IFERROR(IF(Standardno,J20/KalorijeNaFunt,J20/KalorijeNaFunt/2.2),"") -> 13.7 | L20: =IFERROR(ŽelenaIzgubljenaInPridobljenaTeža-K20,"") -> 1.28 | M20: =IFERROR(IF(B19<>"",L20/(ŽelenaIzgubljenaInPridobljenaTeža),""),"") -> 9%
B21: 2022-08-24 | D21: 11 | E21: 148.6 | F21: =IFERROR(BazalniMetabolizemTek,"") -> 1447 | G21: =IFERROR(IF(K20>0,F20*FaktorAktivnosti+IF(ŽelenaTeža="Ohrani",0,IF(ŽelenaTeža="POVEČAJ",-500,IF(ŽelenaTeža="Znižaj",500))),""),"") -> 1744 | H21: =IFERROR(F21*(FaktorAktivnosti),"") -> 2243 | I21: =IFERROR(IF(ŽelenaTeža="Znižaj",G21-H21,H21-G21),"") -> 499 | J21: 47510 | K21: =IFERROR(IF(Standardno,J21/KalorijeNaFunt,J21/KalorijeNaFunt/2.2),"") -> 13.6 | L21: =IFERROR(ŽelenaIzgubljenaInPridobljenaTeža-K21,"") -> 1.43 | M21: =IFERROR(IF(B20<>"",L21/(ŽelenaIzgubljenaInPridobljenaTeža),""),"") -> 10%
B22: 2022-08-25 | D22: 12 | E22: 148.4 | F22: =IFERROR(BazalniMetabolizemTek,"") -> 1446 | G22: =IFERROR(IF(K21>0,F21*FaktorAktivnosti+IF(ŽelenaTeža="Ohrani",0,IF(ŽelenaTeža="POVEČAJ",-500,IF(ŽelenaTeža="Znižaj",500))),""),"") -> 1743 | H22: =IFERROR(F22*(FaktorAktivnosti),"") -> 2242 | I22: =IFERROR(IF(ŽelenaTeža="Znižaj",G22-H22,H22-G22),"") -> 499 | J22: 47011 | K22: =IFERROR(IF(Standardno,J22/KalorijeNaFunt,J22/KalorijeNaFunt/2.2),"") -> 13.4 | L22: =IFERROR(ŽelenaIzgubljenaInPridobljenaTeža-K22,"") -> 1.57 | M22: =IFERROR(IF(B21<>"",L22/(ŽelenaIzgubljenaInPridobljenaTeža),""),"") -> 10%
B23: 2022-08-26 | D23: 13 | E23: 148.3 | F23: =IFERROR(BazalniMetabolizemTek,"") -> 1446 | G23: =IFERROR(IF(K22>0,F22*FaktorAktivnosti+IF(ŽelenaTeža="Ohrani",0,IF(ŽelenaTeža="POVEČAJ",-500,IF(ŽelenaTeža="Znižaj",500))),""),"") -> 1742 | H23: =IFERROR(F23*(FaktorAktivnosti),"") -> 2241 | I23: =IFERROR(IF(ŽelenaTeža="Znižaj",G23-H23,H23-G23),"") -> 499 | J23: 46512 | K23: =IFERROR(IF(Standardno,J23/KalorijeNaFunt,J23/KalorijeNaFunt/2.2),"") -> 13.3 | L23: =IFERROR(ŽelenaIzgubljenaInPridobljenaTeža-K23,"") -> 1.71 | M23: =IFERROR(IF(B22<>"",L23/(ŽelenaIzgubljenaInPridobljenaTeža),""),"") -> 11%
B24: 2022-08-27 | D24: 14 | E24: 148.1 | F24: =IFERROR(BazalniMetabolizemTek,"") -> 1445 | G24: =IFERROR(IF(K23>0,F23*FaktorAktivnosti+IF(ŽelenaTeža="Ohrani",0,IF(ŽelenaTeža="POVEČAJ",-500,IF(ŽelenaTeža="Znižaj",500))),""),"") -> 1741 | H24: =IFERROR(F24*(FaktorAktivnosti),"") -> 2240 | I24: =IFERROR(IF(ŽelenaTeža="Znižaj",G24-H24,H24-G24),"") -> 499 | J24: 46012 | K24: =IFERROR(IF(Standardno,J24/KalorijeNaFunt,J24/KalorijeNaFunt/2.2),"") -> 13.1 | L24: =IFERROR(ŽelenaIzgubljenaInPridobljenaTeža-K24,"") -> 1.85 | M24: =IFERROR(IF(B23<>"",L24/(ŽelenaIzgubljenaInPridobljenaTeža),""),"") -> 12%
B25: 2022-08-28 | C25: 3 | D25: 15 | E25: 148.0 | F25: =IFERROR(BazalniMetabolizemTek,"") -> 1445 | G25: =IFERROR(IF(K24>0,F24*FaktorAktivnosti+IF(ŽelenaTeža="Ohrani",0,IF(ŽelenaTeža="POVEČAJ",-500,IF(ŽelenaTeža="Znižaj",500))),""),"") -> 1740 | H25: =IFERROR(F25*(FaktorAktivnosti),"") -> 2239 | I25: =IFERROR(IF(ŽelenaTeža="Znižaj",G25-H25,H25-G25),"") -> 499 | J25: 45513 | K25: =IFERROR(IF(Standardno,J25/KalorijeNaFunt,J25/KalorijeNaFunt/2.2),"") -> 13.0 | L25: =IFERROR(ŽelenaIzgubljenaInPridobljenaTeža-K25,"") -> 2.00 | M25: =IFERROR(IF(B24<>"",L25/(ŽelenaIzgubljenaInPridobljenaTeža),""),"") -> 13%
B26: 2022-08-29 | D26: 16 | E26: 147.9 | F26: =IFERROR(BazalniMetabolizemTek,"") -> 1444 | G26: =IFERROR(IF(K25>0,F25*FaktorAktivnosti+IF(ŽelenaTeža="Ohrani",0,IF(ŽelenaTeža="POVEČAJ",-500,IF(ŽelenaTeža="Znižaj",500))),""),"") -> 1739 | H26: =IFERROR(F26*(FaktorAktivnosti),"") -> 2238 | I26: =IFERROR(IF(ŽelenaTeža="Znižaj",G26-H26,H26-G26),"") -> 499 | J26: 45014 | K26: =IFERROR(IF(Standardno,J26/KalorijeNaFunt,J26/KalorijeNaFunt/2.2),"") -> 12.9 | L26: =IFERROR(ŽelenaIzgubljenaInPridobljenaTeža-K26,"") -> 2.14 | M26: =IFERROR(IF(B25<>"",L26/(ŽelenaIzgubljenaInPridobljenaTeža),""),"") -> 14%
B27: 2022-08-30 | D27: 17 | E27: 147.7 | F27: =IFERROR(BazalniMetabolizemTek,"") -> 1443 | G27: =IFERROR(IF(K26>0,F26*FaktorAktivnosti+IF(ŽelenaTeža="Ohrani",0,IF(ŽelenaTeža="POVEČAJ",-500,IF(ŽelenaTeža="Znižaj",500))),""),"") -> 1738 | H27: =IFERROR(F27*(FaktorAktivnosti),"") -> 2237 | I27: =IFERROR(IF(ŽelenaTeža="Znižaj",G27-H27,H27-G27),"") -> 499 | J27: 44515 | K27: =IFERROR(IF(Standardno,J27/KalorijeNaFunt,J27/KalorijeNaFunt/2.2),"") -> 12.7 | L27: =IFERROR(ŽelenaIzgubljenaInPridobljenaTeža-K27,"") -> 2.28 | M27: =IFERROR(IF(B26<>"",L27/(ŽelenaIzgubljenaInPridobljenaTeža),""),"") -> 15%
B28: 2022-08-31 | D28: 18 | E28: 147.6 | F28: =IFERROR(BazalniMetabolizemTek,"") -> 1443 | G28: =IFERROR(IF(K27>0,F27*FaktorAktivnosti+IF(ŽelenaTeža="Ohrani",0,IF(ŽelenaTeža="POVEČAJ",-500,IF(ŽelenaTeža="Znižaj",500))),""),"") -> 1737 | H28: =IFERROR(F28*(FaktorAktivnosti),"") -> 2236 | I28: =IFERROR(IF(ŽelenaTeža="Znižaj",G28-H28,H28-G28),"") -> 499 | J28: 44016 | K28: =IFERROR(IF(Standardno,J28/KalorijeNaFunt,J28/KalorijeNaFunt/2.2),"") -> 12.6 | L28: =IFERROR(ŽelenaIzgubljenaInPridobljenaTeža-K28,"") -> 2.42 | M28: =IFERROR(IF(B27<>"",L28/(ŽelenaIzgubljenaInPridobljenaTeža),""),"") -> 16%
B29: 2022-09-01 | D29: 19 | E29: 147.4 | F29: =IFERROR(BazalniMetabolizemTek,"") -> 1442 | G29: =IFERROR(IF(K28>0,F28*FaktorAktivnosti+IF(ŽelenaTeža="Ohrani",0,IF(ŽelenaTeža="POVEČAJ",-500,IF(ŽelenaTeža="Znižaj",500))),""),"") -> 1736 | H29: =IFERROR(F29*(FaktorAktivnosti),"") -> 2235 | I29: =IFERROR(IF(ŽelenaTeža="Znižaj",G29-H29,H29-G29),"") -> 499 | J29: 43517 | K29: =IFERROR(IF(Standardno,J29/KalorijeNaFunt,J29/KalorijeNaFunt/2.2),"") -> 12.4 | L29: =IFERROR(ŽelenaIzgubljenaInPridobljenaTeža-K29,"") -> 2.57 | M29: =IFERROR(IF(B28<>"",L29/(ŽelenaIzgubljenaInPridobljenaTeža),""),"") -> 17%
B30: 2022-09-02 | D30: 20 | E30: 147.3 | F30: =IFERROR(BazalniMetabolizemTek,"") -> 1441 | G30: =IFERROR(IF(K29>0,F29*FaktorAktivnosti+IF(ŽelenaTeža="Ohrani",0,IF(ŽelenaTeža="POVEČAJ",-500,IF(ŽelenaTeža="Znižaj",500))),""),"") -> 1735 | H30: =IFERROR(F30*(FaktorAktivnosti),"") -> 2234 | I30: =IFERROR(IF(ŽelenaTeža="Znižaj",G30-H30,H30-G30),"") -> 499 | J30: 43018 | K30: =IFERROR(IF(Standardno,J30/KalorijeNaFunt,J30/KalorijeNaFunt/2.2),"") -> 12.3 | L30: =IFERROR(ŽelenaIzgubljenaInPridobljenaTeža-K30,"") -> 2.71 | M30: =IFERROR(IF(B29<>"",L30/(ŽelenaIzgubljenaInPridobljenaTeža),""),"") -> 18%
B31: 2022-09-03 | D31: 21 | E31: 147.1 | F31: =IFERROR(BazalniMetabolizemTek,"") -> 1441 | G31: =IFERROR(IF(K30>0,F30*FaktorAktivnosti+IF(ŽelenaTeža="Ohrani",0,IF(ŽelenaTeža="POVEČAJ",-500,IF(ŽelenaTeža="Znižaj",500))),""),"") -> 1734 | H31: =IFERROR(F31*(FaktorAktivnosti),"") -> 2233 | I31: =IFERROR(IF(ŽelenaTeža="Znižaj",G31-H31,H31-G31),"") -> 499 | J31: 42519 | K31: =IFERROR(IF(Standardno,J31/KalorijeNaFunt,J31/KalorijeNaFunt/2.2),"") -> 12.1 | L31: =IFERROR(ŽelenaIzgubljenaInPridobljenaTeža-K31,"") -> 2.85 | M31: =IFERROR(IF(B30<>"",L31/(ŽelenaIzgubljenaInPridobljenaTeža),""),"") -> 19%
B32: 2022-09-04 | C32: 4 | D32: 22 | E32: 147.0 | F32: =IFERROR(BazalniMetabolizemTek,"") -> 1440 | G32: =IFERROR(IF(K31>0,F31*FaktorAktivnosti+IF(ŽelenaTeža="Ohrani",0,IF(ŽelenaTeža="POVEČAJ",-500,IF(ŽelenaTeža="Znižaj",500))),""),"") -> 1733 | H32: =IFERROR(F32*(FaktorAktivnosti),"") -> 2232 | I32: =IFERROR(IF(ŽelenaTeža="Znižaj",G32-H32,H32-G32),"") -> 499 | J32: 42020 | K32: =IFERROR(IF(Standardno,J32/KalorijeNaFunt,J32/KalorijeNaFunt/2.2),"") -> 12.0 | L32: =IFERROR(ŽelenaIzgubljenaInPridobljenaTeža-K32,"") -> 2.99 | M32: =IFERROR(IF(B31<>"",L32/(ŽelenaIzgubljenaInPridobljenaTeža),""),"") -> 20%
B33: 2022-09-05 | D33: 23 | E33: 146.9 | F33: =IFERROR(BazalniMetabolizemTek,"") -> 1440 | G33: =IFERROR(IF(K32>0,F32*FaktorAktivnosti+IF(ŽelenaTeža="Ohrani",0,IF(ŽelenaTeža="POVEČAJ",-500,IF(ŽelenaTeža="Znižaj",500))),""),"") -> 1732 | H33: =IFERROR(F33*(FaktorAktivnosti),"") -> 2231 | I33: =IFERROR(IF(ŽelenaTeža="Znižaj",G33-H33,H33-G33),"") -> 499 | J33: 41521 | K33: =IFERROR(IF(Standardno,J33/KalorijeNaFunt,J33/KalorijeNaFunt/2.2),"") -> 11.9 | L33: =IFERROR(ŽelenaIzgubljenaInPridobljenaTeža-K33,"") -> 3.14 | M33: =IFERROR(IF(B32<>"",L33/(ŽelenaIzgubljenaInPridobljenaTeža),""),"") -> 21%
B34: 2022-09-06 | D34: 24 | E34: 146.7 | F34: =IFERROR(BazalniMetabolizemTek,"") -> 1439 | G34: =IFERROR(IF(K33>0,F33*FaktorAktivnosti+IF(ŽelenaTeža="Ohrani",0,IF(ŽelenaTeža="POVEČAJ",-500,IF(ŽelenaTeža="Znižaj",500))),""),"") -> 1731 | H34: =IFERROR(F34*(FaktorAktivnosti),"") -> 2230 | I34: =IFERROR(IF(ŽelenaTeža="Znižaj",G34-H34,H34-G34),"") -> 499 | J34: 41022 | K34: =IFERROR(IF(Standardno,J34/KalorijeNaFunt,J34/KalorijeNaFunt/2.2),"") -> 11.7 | L34: =IFERROR(ŽelenaIzgubljenaInPridobljenaTeža-K34,"") -> 3.28 | M34: =IFERROR(IF(B33<>"",L34/(ŽelenaIzgubljenaInPridobljenaTeža),""),"") -> 22%
B35: 2022-09-07 | D35: 25 | E35: 146.6 | F35: =IFERROR(BazalniMetabolizemTek,"") -> 1438 | G35: =IFERROR(IF(K34>0,F34*FaktorAktivnosti+IF(ŽelenaTeža="Ohrani",0,IF(ŽelenaTeža="POVEČAJ",-500,IF(ŽelenaTeža="Znižaj",500))),""),"") -> 1730 | H35: =IFERROR(F35*(FaktorAktivnosti),"") -> 2229 | I35: =IFERROR(IF(ŽelenaTeža="Znižaj",G35-H35,H35-G35),"") -> 499 | J35: 40523 | K35: =IFERROR(IF(Standardno,J35/KalorijeNaFunt,J35/KalorijeNaFunt/2.2),"") -> 11.6 | L35: =IFERROR(ŽelenaIzgubljenaInPridobljenaTeža-K35,"") -> 3.42 | M35: =IFERROR(IF(B34<>"",L35/(ŽelenaIzgubljenaInPridobljenaTeža),""),"") -> 23%
B36: 2022-09-08 | D36: 26 | E36: 146.4 | F36: =IFERROR(BazalniMetabolizemTek,"") -> 1438 | G36: =IFERROR(IF(K35>0,F35*FaktorAktivnosti+IF(ŽelenaTeža="Ohrani",0,IF(ŽelenaTeža="POVEČAJ",-500,IF(ŽelenaTeža="Znižaj",500))),""),"") -> 1729 | H36: =IFERROR(F36*(FaktorAktivnosti),"") -> 2228 | I36: =IFERROR(IF(ŽelenaTeža="Znižaj",G36-H36,H36-G36),"") -> 499 | J36: 40024 | K36: =IFERROR(IF(Standardno,J36/KalorijeNaFunt,J36/KalorijeNaFunt/2.2),"") -> 11.4 | L36: =IFERROR(ŽelenaIzgubljenaInPridobljenaTeža-K36,"") -> 3.56 | M36: =IFERROR(IF(B35<>"",L36/(ŽelenaIzgubljenaInPridobljenaTeža),""),"") -> 24%
B37: 2022-09-09 | D37: 27 | E37: 146.3 | F37: =IFERROR(BazalniMetabolizemTek,"") -> 1437 | G37: =IFERROR(IF(K36>0,F36*FaktorAktivnosti+IF(ŽelenaTeža="Ohrani",0,IF(ŽelenaTeža="POVEČAJ",-500,IF(ŽelenaTeža="Znižaj",500))),""),"") -> 1728 | H37: =IFERROR(F37*(FaktorAktivnosti),"") -> 2227 | I37: =IFERROR(IF(ŽelenaTeža="Znižaj",G37-H37,H37-G37),"") -> 499 | J37: 39525 | K37: =IFERROR(IF(Standardno,J37/KalorijeNaFunt,J37/KalorijeNaFunt/2.2),"") -> 11.3 | L37: =IFERROR(ŽelenaIzgubljenaInPridobljenaTeža-K37,"") -> 3.71 | M37: =IFERROR(IF(B36<>"",L37/(ŽelenaIzgubljenaInPridobljenaTeža),""),"") -> 25%
B38: 2022-09-10 | D38: 28 | E38: 146.1 | F38: =IFERROR(BazalniMetabolizemTek,"") -> 1436 | G38: =IFERROR(IF(K37>0,F37*FaktorAktivnosti+IF(ŽelenaTeža="Ohrani",0,IF(ŽelenaTeža="POVEČAJ",-500,IF(ŽelenaTeža="Znižaj",500))),""),"") -> 1727 | H38: =IFERROR(F38*(FaktorAktivnosti),"") -> 2227 | I38: =IFERROR(IF(ŽelenaTeža="Znižaj",G38-H38,H38-G38),"") -> 499 | J38: 39026 | K38: =IFERROR(IF(Standardno,J38/KalorijeNaFunt,J38/KalorijeNaFunt/2.2),"") -> 11.2 | L38: =IFERROR(ŽelenaIzgubljenaInPridobljenaTeža-K38,"") -> 3.85 | M38: =IFERROR(IF(B37<>"",L38/(ŽelenaIzgubljenaInPridobljenaTeža),""),"") -> 26%
B39: 2022-09-11 | C39: 5 | D39: 29 | E39: 146.0 | F39: =IFERROR(BazalniMetabolizemTek,"") -> 1436 | G39: =IFERROR(IF(K38>0,F38*FaktorAktivnosti+IF(ŽelenaTeža="Ohrani",0,IF(ŽelenaTeža="POVEČAJ",-500,IF(ŽelenaTeža="Znižaj",500))),""),"") -> 1727 | H39: =IFERROR(F39*(FaktorAktivnosti),"") -> 2226 | I39: =IFERROR(IF(ŽelenaTeža="Znižaj",G39-H39,H39-G39),"") -> 499 | J39: 38527 | K39: =IFERROR(IF(Standardno,J39/KalorijeNaFunt,J39/KalorijeNaFunt/2.2),"") -> 11.0 | L39: =IFERROR(ŽelenaIzgubljenaInPridobljenaTeža-K39,"") -> 3.99 | M39: =IFERROR(IF(B38<>"",L39/(ŽelenaIzgubljenaInPridobljenaTeža),""),"") -> 27%
B40: 2022-09-12 | D40: 30 | E40: 145.9 | F40: =IFERROR(BazalniMetabolizemTek,"") -> 1435 | G40: =IFERROR(IF(K39>0,F39*FaktorAktivnosti+IF(ŽelenaTeža="Ohrani",0,IF(ŽelenaTeža="POVEČAJ",-500,IF(ŽelenaTeža="Znižaj",500))),""),"") -> 1726 | H40: =IFERROR(F40*(FaktorAktivnosti),"") -> 2225 | I40: =IFERROR(IF(ŽelenaTeža="Znižaj",G40-H40,H40-G40),"") -> 499 | J40: 38028 | K40: =IFERROR(IF(Standardno,J40/KalorijeNaFunt,J40/KalorijeNaFunt/2.2),"") -> 10.9 | L40: =IFERROR(ŽelenaIzgubljenaInPridobljenaTeža-K40,"") -> 4.13 | M40: =IFERROR(IF(B39<>"",L40/(ŽelenaIzgubljenaInPridobljenaTeža),""),"") -> 28%
B41: 2022-09-13 | D41: 31 | E41: 145.7 | F41: =IFERROR(BazalniMetabolizemTek,"") -> 1435 | G41: =IFERROR(IF(K40>0,F40*FaktorAktivnosti+IF(ŽelenaTeža="Ohrani",0,IF(ŽelenaTeža="POVEČAJ",-500,IF(ŽelenaTeža="Znižaj",500))),""),"") -> 1725 | H41: =IFERROR(F41*(FaktorAktivnosti),"") -> 2224 | I41: =IFERROR(IF(ŽelenaTeža="Znižaj",G41-H41,H41-G41),"") -> 499 | J41: 37529 | K41: =IFERROR(IF(Standardno,J41/KalorijeNaFunt,J41/KalorijeNaFunt/2.2),"") -> 10.7 | L41: =IFERROR(ŽelenaIzgubljenaInPridobljenaTeža-K41,"") -> 4.28 | M41: =IFERROR(IF(B40<>"",L41/(ŽelenaIzgubljenaInPridobljenaTeža),""),"") -> 29%
B42: 2022-09-14 | D42: 32 | E42: 145.6 | F42: =IFERROR(BazalniMetabolizemTek,"") -> 1434 | G42: =IFERROR(IF(K41>0,F41*FaktorAktivnosti+IF(ŽelenaTeža="Ohrani",0,IF(ŽelenaTeža="POVEČAJ",-500,IF(ŽelenaTeža="Znižaj",500))),""),"") -> 1724 | H42: =IFERROR(F42*(FaktorAktivnosti),"") -> 2223 | I42: =IFERROR(IF(ŽelenaTeža="Znižaj",G42-H42,H42-G42),"") -> 499 | J42: 37030 | K42: =IFERROR(IF(Standardno,J42/KalorijeNaFunt,J42/KalorijeNaFunt/2.2),"") -> 10.6 | L42: =IFERROR(ŽelenaIzgubljenaInPridobljenaTeža-K42,"") -> 4.42 | M42: =IFERROR(IF(B41<>"",L42/(ŽelenaIzgubljenaInPridobljenaTeža),""),"") -> 29%
B43: 2022-09-15 | D43: 33 | E43: 145.4 | F43: =IFERROR(BazalniMetabolizemTek,"") -> 1433 | G43: =IFERROR(IF(K42>0,F42*FaktorAktivnosti+IF(ŽelenaTeža="Ohrani",0,IF(ŽelenaTeža="POVEČAJ",-500,IF(ŽelenaTeža="Znižaj",500))),""),"") -> 1723 | H43: =IFERROR(F43*(FaktorAktivnosti),"") -> 2222 | I43: =IFERROR(IF(ŽelenaTeža="Znižaj",G43-H43,H43-G43),"") -> 499 | J43: 36531 | K43: =IFERROR(IF(Standardno,J43/KalorijeNaFunt,J43/KalorijeNaFunt/2.2),"") -> 10.4 | L43: =IFERROR(ŽelenaIzgubljenaInPridobljenaTeža-K43,"") -> 4.56 | M43: =IFERROR(IF(B42<>"",L43/(ŽelenaIzgubljenaInPridobljenaTeža),""),"") -> 30%
B44: 2022-09-16 | D44: 34 | E44: 145.3 | F44: =IFERROR(BazalniMetabolizemTek,"") -> 1433 | G44: =IFERROR(IF(K43>0,F43*FaktorAktivnosti+IF(ŽelenaTeža="Ohrani",0,IF(ŽelenaTeža="POVEČAJ",-500,IF(ŽelenaTeža="Znižaj",500))),""),"") -> 1722 | H44: =IFERROR(F44*(FaktorAktivnosti),"") -> 2221 | I44: =IFERROR(IF(ŽelenaTeža="Znižaj",G44-H44,H44-G44),"") -> 499 | J44: 36032 | K44: =IFERROR(IF(Standardno,J44/KalorijeNaFunt,J44/KalorijeNaFunt/2.2),"") -> 10.3 | L44: =IFERROR(ŽelenaIzgubljenaInPridobljenaTeža-K44,"") -> 4.71 | M44: =IFERROR(IF(B43<>"",L44/(ŽelenaIzgubljenaInPridobljenaTeža),""),"") -> 31%
B45: 2022-09-17 | D45: 35 | E45: 145.2 | F45: =IFERROR(BazalniMetabolizemTek,"") -> 1432 | G45: =IFERROR(IF(K44>0,F44*FaktorAktivnosti+IF(ŽelenaTeža="Ohrani",0,IF(ŽelenaTeža="POVEČAJ",-500,IF(ŽelenaTeža="Znižaj",500))),""),"") -> 1721 | H45: =IFERROR(F45*(FaktorAktivnosti),"") -> 2220 | I45: =IFERROR(IF(ŽelenaTeža="Znižaj",G45-H45,H45-G45),"") -> 499 | J45: 35533 | K45: =IFERROR(IF(Standardno,J45/KalorijeNaFunt,J45/KalorijeNaFunt/2.2),"") -> 10.2 | L45: =IFERROR(ŽelenaIzgubljenaInPridobljenaTeža-K45,"") -> 4.85 | M45: =IFERROR(IF(B44<>"",L45/(ŽelenaIzgubljenaInPridobljenaTeža),""),"") -> 32%
B46: 2022-09-18 | C46: 6 | D46: 36 | E46: 145.0 | F46: =IFERROR(BazalniMetabolizemTek,"") -> 1431 | G46: =IFERROR(IF(K45>0,F45*FaktorAktivnosti+IF(ŽelenaTeža="Ohrani",0,IF(ŽelenaTeža="POVEČAJ",-500,IF(ŽelenaTeža="Znižaj",500))),""),"") -> 1720 | H46: =IFERROR(F46*(FaktorAktivnosti),"") -> 2219 | I46: =IFERROR(IF(ŽelenaTeža="Znižaj",G46-H46,H46-G46),"") -> 499 | J46: 35034 | K46: =IFERROR(IF(Standardno,J46/KalorijeNaFunt,J46/KalorijeNaFunt/2.2),"") -> 10.0 | L46: =IFERROR(ŽelenaIzgubljenaInPridobljenaTeža-K46,"") -> 4.99 | M46: =IFERROR(IF(B45<>"",L46/(ŽelenaIzgubljenaInPridobljenaTeža),""),"") -> 33%
B47: 2022-09-19 | D47: 37 | E47: 144.9 | F47: =IFERROR(BazalniMetabolizemTek,"") -> 1431 | G47: =IFERROR(IF(K46>0,F46*FaktorAktivnosti+IF(ŽelenaTeža="Ohrani",0,IF(ŽelenaTeža="POVEČAJ",-500,IF(ŽelenaTeža="Znižaj",500))),""),"") -> 1719 | H47: =IFERROR(F47*(FaktorAktivnosti),"") -> 2218 | I47: =IFERROR(IF(ŽelenaTeža="Znižaj",G47-H47,H47-G47),"") -> 499 | J47: 34535 | K47: =IFERROR(IF(Standardno,J47/KalorijeNaFunt,J47/KalorijeNaFunt/2.2),"") -> 9.9 | L47: =IFERROR(ŽelenaIzgubljenaInPridobljenaTeža-K47,"") -> 5.13 | M47: =IFERROR(IF(B46<>"",L47/(ŽelenaIzgubljenaInPridobljenaTeža),""),"") -> 34%
B48: 2022-09-20 | D48: 38 | E48: 144.7 | F48: =IFERROR(BazalniMetabolizemTek,"") -> 1430 | G48: =IFERROR(IF(K47>0,F47*FaktorAktivnosti+IF(ŽelenaTeža="Ohrani",0,IF(ŽelenaTeža="POVEČAJ",-500,IF(ŽelenaTeža="Znižaj",500))),""),"") -> 1718 | H48: =IFERROR(F48*(FaktorAktivnosti),"") -> 2217 | I48: =IFERROR(IF(ŽelenaTeža="Znižaj",G48-H48,H48-G48),"") -> 499 | J48: 34036 | K48: =IFERROR(IF(Standardno,J48/KalorijeNaFunt,J48/KalorijeNaFunt/2.2),"") -> 9.7 | L48: =IFERROR(ŽelenaIzgubljenaInPridobljenaTeža-K48,"") -> 5.28 | M48: =IFERROR(IF(B47<>"",L48/(ŽelenaIzgubljenaInPridobljenaTeža),""),"") -> 35%
B49: 2022-09-21 | D49: 39 | E49: 144.6 | F49: =IFERROR(BazalniMetabolizemTek,"") -> 1430 | G49: =IFERROR(IF(K48>0,F48*FaktorAktivnosti+IF(ŽelenaTeža="Ohrani",0,IF(ŽelenaTeža="POVEČAJ",-500,IF(ŽelenaTeža="Znižaj",500))),""),"") -> 1717 | H49: =IFERROR(F49*(FaktorAktivnosti),"") -> 2216 | I49: =IFERROR(IF(ŽelenaTeža="Znižaj",G49-H49,H49-G49),"") -> 499 | J49: 33537 | K49: =IFERROR(IF(Standardno,J49/KalorijeNaFunt,J49/KalorijeNaFunt/2.2),"") -> 9.6 | L49: =IFERROR(ŽelenaIzgubljenaInPridobljenaTeža-K49,"") -> 5.42 | M49: =IFERROR(IF(B48<>"",L49/(ŽelenaIzgubljenaInPridobljenaTeža),""),"") -> 36%
B50: 2022-09-22 | D50: 40 | E50: 144.4 | F50: =IFERROR(BazalniMetabolizemTek,"") -> 1429 | G50: =IFERROR(IF(K49>0,F49*FaktorAktivnosti+IF(ŽelenaTeža="Ohrani",0,IF(ŽelenaTeža="POVEČAJ",-500,IF(ŽelenaTeža="Znižaj",500))),""),"") -> 1716 | H50: =IFERROR(F50*(FaktorAktivnosti),"") -> 2215 | I50: =IFERROR(IF(ŽelenaTeža="Znižaj",G50-H50,H50-G50),"") -> 499 | J50: 33037 | K50: =IFERROR(IF(Standardno,J50/KalorijeNaFunt,J50/KalorijeNaFunt/2.2),"") -> 9.4 | L50: =IFERROR(ŽelenaIzgubljenaInPridobljenaTeža-K50,"") -> 5.56 | M50: =IFERROR(IF(B49<>"",L50/(ŽelenaIzgubljenaInPridobljenaTeža),""),"") -> 37%
B51: 2022-09-23 | D51: 41 | E51: 144.3 | F51: =IFERROR(BazalniMetabolizemTek,"") -> 1428 | G51: =IFERROR(IF(K50>0,F50*FaktorAktivnosti+IF(ŽelenaTeža="Ohrani",0,IF(ŽelenaTeža="POVEČAJ",-500,IF(ŽelenaTeža="Znižaj",500))),""),"") -> 1715 | H51: =IFERROR(F51*(FaktorAktivnosti),"") -> 2214 | I51: =IFERROR(IF(ŽelenaTeža="Znižaj",G51-H51,H51-G51),"") -> 499 | J51: 32538 | K51: =IFERROR(IF(Standardno,J51/KalorijeNaFunt,J51/KalorijeNaFunt/2.2),"") -> 9.3 | L51: =IFERROR(ŽelenaIzgubljenaInPridobljenaTeža-K51,"") -> 5.70 | M51: =IFERROR(IF(B50<>"",L51/(ŽelenaIzgubljenaInPridobljenaTeža),""),"") -> 38%
B52: 2022-09-24 | D52: 42 | E52: 144.2 | F52: =IFERROR(BazalniMetabolizemTek,"") -> 1428 | G52: =IFERROR(IF(K51>0,F51*FaktorAktivnosti+IF(ŽelenaTeža="Ohrani",0,IF(ŽelenaTeža="POVEČAJ",-500,IF(ŽelenaTeža="Znižaj",500))),""),"") -> 1714 | H52: =IFERROR(F52*(FaktorAktivnosti),"") -> 2213 | I52: =IFERROR(IF(ŽelenaTeža="Znižaj",G52-H52,H52-G52),"") -> 499 | J52: 32039 | K52: =IFERROR(IF(Standardno,J52/KalorijeNaFunt,J52/KalorijeNaFunt/2.2),"") -> 9.2 | L52: =IFERROR(ŽelenaIzgubljenaInPridobljenaTeža-K52,"") -> 5.85 | M52: =IFERROR(IF(B51<>"",L52/(ŽelenaIzgubljenaInPridobljenaTeža),""),"") -> 39%
B53: 2022-09-25 | C53: 7 | D53: 43 | E53: 144.0 | F53: =IFERROR(BazalniMetabolizemTek,"") -> 1427 | G53: =IFERROR(IF(K52>0,F52*FaktorAktivnosti+IF(ŽelenaTeža="Ohrani",0,IF(ŽelenaTeža="POVEČAJ",-500,IF(ŽelenaTeža="Znižaj",500))),""),"") -> 1713 | H53: =IFERROR(F53*(FaktorAktivnosti),"") -> 2212 | I53: =IFERROR(IF(ŽelenaTeža="Znižaj",G53-H53,H53-G53),"") -> 499 | J53: 31540 | K53: =IFERROR(IF(Standardno,J53/KalorijeNaFunt,J53/KalorijeNaFunt/2.2),"") -> 9.0 | L53: =IFERROR(ŽelenaIzgubljenaInPridobljenaTeža-K53,"") -> 5.99 | M53: =IFERROR(IF(B52<>"",L53/(ŽelenaIzgubljenaInPridobljenaTeža),""),"") -> 40%
B54: 2022-09-26 | D54: 44 | E54: 143.9 | F54: =IFERROR(BazalniMetabolizemTek,"") -> 1427 | G54: =IFERROR(IF(K53>0,F53*FaktorAktivnosti+IF(ŽelenaTeža="Ohrani",0,IF(ŽelenaTeža="POVEČAJ",-500,IF(ŽelenaTeža="Znižaj",500))),""),"") -> 1712 | H54: =IFERROR(F54*(FaktorAktivnosti),"") -> 2211 | I54: =IFERROR(IF(ŽelenaTeža="Znižaj",G54-H54,H54-G54),"") -> 499 | J54: 31041 | K54: =IFERROR(IF(Standardno,J54/KalorijeNaFunt,J54/KalorijeNaFunt/2.2),"") -> 8.9 | L54: =IFERROR(ŽelenaIzgubljenaInPridobljenaTeža-K54,"") -> 6.13 | M54: =IFERROR(IF(B53<>"",L54/(ŽelenaIzgubljenaInPridobljenaTeža),""),"") -> 41%
B55: 2022-09-27 | D55: 45 | E55: 143.7 | F55: =IFERROR(BazalniMetabolizemTek,"") -> 1426 | G55: =IFERROR(IF(K54>0,F54*FaktorAktivnosti+IF(ŽelenaTeža="Ohrani",0,IF(ŽelenaTeža="POVEČAJ",-500,IF(ŽelenaTeža="Znižaj",500))),""),"") -> 1711 | H55: =IFERROR(F55*(FaktorAktivnosti),"") -> 2210 | I55: =IFERROR(IF(ŽelenaTeža="Znižaj",G55-H55,H55-G55),"") -> 499 | J55: 30542 | K55: =IFERROR(IF(Standardno,J55/KalorijeNaFunt,J55/KalorijeNaFunt/2.2),"") -> 8.7 | L55: =IFERROR(ŽelenaIzgubljenaInPridobljenaTeža-K55,"") -> 6.27 | M55: =IFERROR(IF(B54<>"",L55/(ŽelenaIzgubljenaInPridobljenaTeža),""),"") -> 42%
B56: 2022-09-28 | D56: 46 | E56: 143.6 | F56: =IFERROR(BazalniMetabolizemTek,"") -> 1425 | G56: =IFERROR(IF(K55>0,F55*FaktorAktivnosti+IF(ŽelenaTeža="Ohrani",0,IF(ŽelenaTeža="POVEČAJ",-500,IF(ŽelenaTeža="Znižaj",500))),""),"") -> 1710 | H56: =IFERROR(F56*(FaktorAktivnosti),"") -> 2209 | I56: =IFERROR(IF(ŽelenaTeža="Znižaj",G56-H56,H56-G56),"") -> 499 | J56: 30043 | K56: =IFERROR(IF(Standardno,J56/KalorijeNaFunt,J56/KalorijeNaFunt/2.2),"") -> 8.6 | L56: =IFERROR(ŽelenaIzgubljenaInPridobljenaTeža-K56,"") -> 6.42 | M56: =IFERROR(IF(B55<>"",L56/(ŽelenaIzgubljenaInPridobljenaTeža),""),"") -> 43%
B57: 2022-09-29 | D57: 47 | E57: 143.4 | F57: =IFERROR(BazalniMetabolizemTek,"") -> 1425 | G57: =IFERROR(IF(K56>0,F56*FaktorAktivnosti+IF(ŽelenaTeža="Ohrani",0,IF(ŽelenaTeža="POVEČAJ",-500,IF(ŽelenaTeža="Znižaj",500))),""),"") -> 1709 | H57: =IFERROR(F57*(FaktorAktivnosti),"") -> 2208 | I57: =IFERROR(IF(ŽelenaTeža="Znižaj",G57-H57,H57-G57),"") -> 499 | J57: 29544 | K57: =IFERROR(IF(Standardno,J57/KalorijeNaFunt,J57/KalorijeNaFunt/2.2),"") -> 8.4 | L57: =IFERROR(ŽelenaIzgubljenaInPridobljenaTeža-K57,"") -> 6.56 | M57: =IFERROR(IF(B56<>"",L57/(ŽelenaIzgubljenaInPridobljenaTeža),""),"") -> 44%
B58: 2022-09-30 | D58: 48 | E58: 143.3 | F58: =IFERROR(BazalniMetabolizemTek,"") -> 1424 | G58: =IFERROR(IF(K57>0,F57*FaktorAktivnosti+IF(ŽelenaTeža="Ohrani",0,IF(ŽelenaTeža="POVEČAJ",-500,IF(ŽelenaTeža="Znižaj",500))),""),"") -> 1708 | H58: =IFERROR(F58*(FaktorAktivnosti),"") -> 2207 | I58: =IFERROR(IF(ŽelenaTeža="Znižaj",G58-H58,H58-G58),"") -> 499 | J58: 29045 | K58: =IFERROR(IF(Standardno,J58/KalorijeNaFunt,J58/KalorijeNaFunt/2.2),"") -> 8.3 | L58: =IFERROR(ŽelenaIzgubljenaInPridobljenaTeža-K58,"") -> 6.70 | M58: =IFERROR(IF(B57<>"",L58/(ŽelenaIzgubljenaInPridobljenaTeža),""),"") -> 45%
B59: 2022-10-01 | D59: 49 | E59: 143.2 | F59: =IFERROR(BazalniMetabolizemTek,"") -> 1423 | G59: =IFERROR(IF(K58>0,F58*FaktorAktivnosti+IF(ŽelenaTeža="Ohrani",0,IF(ŽelenaTeža="POVEČAJ",-500,IF(ŽelenaTeža="Znižaj",500))),""),"") -> 1707 | H59: =IFERROR(F59*(FaktorAktivnosti),"") -> 2206 | I59: =IFERROR(IF(ŽelenaTeža="Znižaj",G59-H59,H59-G59),"") -> 499 | J59: 28546 | K59: =IFERROR(IF(Standardno,J59/KalorijeNaFunt,J59/KalorijeNaFunt/2.2),"") -> 8.2 | L59: =IFERROR(ŽelenaIzgubljenaInPridobljenaTeža-K59,"") -> 6.84 | M59: =IFERROR(IF(B58<>"",L59/(ŽelenaIzgubljenaInPridobljenaTeža),""),"") -> 46%
B60: 2022-10-02 | C60: 8 | D60: 50 | E60: 143.0 | F60: =IFERROR(BazalniMetabolizemTek,"") -> 1423 | G60: =IFERROR(IF(K59>0,F59*FaktorAktivnosti+IF(ŽelenaTeža="Ohrani",0,IF(ŽelenaTeža="POVEČAJ",-500,IF(ŽelenaTeža="Znižaj",500))),""),"") -> 1706 | H60: =IFERROR(F60*(FaktorAktivnosti),"") -> 2205 | I60: =IFERROR(IF(ŽelenaTeža="Znižaj",G60-H60,H60-G60),"") -> 499 | J60: 28047 | K60: =IFERROR(IF(Standardno,J60/KalorijeNaFunt,J60/KalorijeNaFunt/2.2),"") -> 8.0 | L60: =IFERROR(ŽelenaIzgubljenaInPridobljenaTeža-K60,"") -> 6.99 | M60: =IFERROR(IF(B59<>"",L60/(ŽelenaIzgubljenaInPridobljenaTeža),""),"") -> 47%
B61: 2022-10-03 | D61: 51 | E61: 142.9 | F61: =IFERROR(BazalniMetabolizemTek,"") -> 1422 | G61: =IFERROR(IF(K60>0,F60*FaktorAktivnosti+IF(ŽelenaTeža="Ohrani",0,IF(ŽelenaTeža="POVEČAJ",-500,IF(ŽelenaTeža="Znižaj",500))),""),"") -> 1705 | H61: =IFERROR(F61*(FaktorAktivnosti),"") -> 2204 | I61: =IFERROR(IF(ŽelenaTeža="Znižaj",G61-H61,H61-G61),"") -> 499 | J61: 27548 | K61: =IFERROR(IF(Standardno,J61/KalorijeNaFunt,J61/KalorijeNaFunt/2.2),"") -> 7.9 | L61: =IFERROR(ŽelenaIzgubljenaInPridobljenaTeža-K61,"") -> 7.13 | M61: =IFERROR(IF(B60<>"",L61/(ŽelenaIzgubljenaInPridobljenaTeža),""),"") -> 48%
B62: 2022-10-04 | D62: 52 | E62: 142.7 | F62: =IFERROR(BazalniMetabolizemTek,"") -> 1422 | G62: =IFERROR(IF(K61>0,F61*FaktorAktivnosti+IF(ŽelenaTeža="Ohrani",0,IF(ŽelenaTeža="POVEČAJ",-500,IF(ŽelenaTeža="Znižaj",500))),""),"") -> 1704 | H62: =IFERROR(F62*(FaktorAktivnosti),"") -> 2203 | I62: =IFERROR(IF(ŽelenaTeža="Znižaj",G62-H62,H62-G62),"") -> 499 | J62: 27049 | K62: =IFERROR(IF(Standardno,J62/KalorijeNaFunt,J62/KalorijeNaFunt/2.2),"") -> 7.7 | L62: =IFERROR(ŽelenaIzgubljenaInPridobljenaTeža-K62,"") -> 7.27 | M62: =IFERROR(IF(B61<>"",L62/(ŽelenaIzgubljenaInPridobljenaTeža),""),"") -> 48%
B63: 2022-10-05 | D63: 53 | E63: 142.6 | F63: =IFERROR(BazalniMetabolizemTek,"") -> 1421 | G63: =IFERROR(IF(K62>0,F62*FaktorAktivnosti+IF(ŽelenaTeža="Ohrani",0,IF(ŽelenaTeža="POVEČAJ",-500,IF(ŽelenaTeža="Znižaj",500))),""),"") -> 1703 | H63: =IFERROR(F63*(FaktorAktivnosti),"") -> 2202 | I63: =IFERROR(IF(ŽelenaTeža="Znižaj",G63-H63,H63-G63),"") -> 499 | J63: 26550 | K63: =IFERROR(IF(Standardno,J63/KalorijeNaFunt,J63/KalorijeNaFunt/2.2),"") -> 7.6 | L63: =IFERROR(ŽelenaIzgubljenaInPridobljenaTeža-K63,"") -> 7.41 | M63: =IFERROR(IF(B62<>"",L63/(ŽelenaIzgubljenaInPridobljenaTeža),""),"") -> 49%
B64: 2022-10-06 | D64: 54 | E64: 142.4 | F64: =IFERROR(BazalniMetabolizemTek,"") -> 1420 | G64: =IFERROR(IF(K63>0,F63*FaktorAktivnosti+IF(ŽelenaTeža="Ohrani",0,IF(ŽelenaTeža="POVEČAJ",-500,IF(ŽelenaTeža="Znižaj",500))),""),"") -> 1702 | H64: =IFERROR(F64*(FaktorAktivnosti),"") -> 2202 | I64: =IFERROR(IF(ŽelenaTeža="Znižaj",G64-H64,H64-G64),"") -> 499 | J64: 26051 | K64: =IFERROR(IF(Standardno,J64/KalorijeNaFunt,J64/KalorijeNaFunt/2.2),"") -> 7.4 | L64: =IFERROR(ŽelenaIzgubljenaInPridobljenaTeža-K64,"") -> 7.56 | M64: =IFERROR(IF(B63<>"",L64/(ŽelenaIzgubljenaInPridobljenaTeža),""),"") -> 50%
B65: 2022-10-07 | D65: 55 | E65: 142.3 | F65: =IFERROR(BazalniMetabolizemTek,"") -> 1420 | G65: =IFERROR(IF(K64>0,F64*FaktorAktivnosti+IF(ŽelenaTeža="Ohrani",0,IF(ŽelenaTeža="POVEČAJ",-500,IF(ŽelenaTeža="Znižaj",500))),""),"") -> 1702 | H65: =IFERROR(F65*(FaktorAktivnosti),"") -> 2201 | I65: =IFERROR(IF(ŽelenaTeža="Znižaj",G65-H65,H65-G65),"") -> 499 | J65: 25552 | K65: =IFERROR(IF(Standardno,J65/KalorijeNaFunt,J65/KalorijeNaFunt/2.2),"") -> 7.3 | L65: =IFERROR(ŽelenaIzgubljenaInPridobljenaTeža-K65,"") -> 7.70 | M65: =IFERROR(IF(B64<>"",L65/(ŽelenaIzgubljenaInPridobljenaTeža),""),"") -> 51%
B66: 2022-10-08 | D66: 56 | E66: 142.2 | F66: =IFERROR(BazalniMetabolizemTek,"") -> 1419 | G66: =IFERROR(IF(K65>0,F65*FaktorAktivnosti+IF(ŽelenaTeža="Ohrani",0,IF(ŽelenaTeža="POVEČAJ",-500,IF(ŽelenaTeža="Znižaj",500))),""),"") -> 1701 | H66: =IFERROR(F66*(FaktorAktivnosti),"") -> 2200 | I66: =IFERROR(IF(ŽelenaTeža="Znižaj",G66-H66,H66-G66),"") -> 499 | J66: 25053 | K66: =IFERROR(IF(Standardno,J66/KalorijeNaFunt,J66/KalorijeNaFunt/2.2),"") -> 7.2 | L66: =IFERROR(ŽelenaIzgubljenaInPridobljenaTeža-K66,"") -> 7.84 | M66: =IFERROR(IF(B65<>"",L66/(ŽelenaIzgubljenaInPridobljenaTeža),""),"") -> 52%
B67: 2022-10-09 | C67: 9 | D67: 57 | E67: 142.0 | F67: =IFERROR(BazalniMetabolizemTek,"") -> 1418 | G67: =IFERROR(IF(K66>0,F66*FaktorAktivnosti+IF(ŽelenaTeža="Ohrani",0,IF(ŽelenaTeža="POVEČAJ",-500,IF(ŽelenaTeža="Znižaj",500))),""),"") -> 1700 | H67: =IFERROR(F67*(FaktorAktivnosti),"") -> 2199 | I67: =IFERROR(IF(ŽelenaTeža="Znižaj",G67-H67,H67-G67),"") -> 499 | J67: 24554 | K67: =IFERROR(IF(Standardno,J67/KalorijeNaFunt,J67/KalorijeNaFunt/2.2),"") -> 7.0 | L67: =IFERROR(ŽelenaIzgubljenaInPridobljenaTeža-K67,"") -> 7.98 | M67: =IFERROR(IF(B66<>"",L67/(ŽelenaIzgubljenaInPridobljenaTeža),""),"") -> 53%
B68: 2022-10-10 | D68: 58 | E68: 141.9 | F68: =IFERROR(BazalniMetabolizemTek,"") -> 1418 | G68: =IFERROR(IF(K67>0,F67*FaktorAktivnosti+IF(ŽelenaTeža="Ohrani",0,IF(ŽelenaTeža="POVEČAJ",-500,IF(ŽelenaTeža="Znižaj",500))),""),"") -> 1699 | H68: =IFERROR(F68*(FaktorAktivnosti),"") -> 2198 | I68: =IFERROR(IF(ŽelenaTeža="Znižaj",G68-H68,H68-G68),"") -> 499 | J68: 24055 | K68: =IFERROR(IF(Standardno,J68/KalorijeNaFunt,J68/KalorijeNaFunt/2.2),"") -> 6.9 | L68: =IFERROR(ŽelenaIzgubljenaInPridobljenaTeža-K68,"") -> 8.13 | M68: =IFERROR(IF(B67<>"",L68/(ŽelenaIzgubljenaInPridobljenaTeža),""),"") -> 54%
B69: 2022-10-11 | D69: 59 | E69: 141.7 | F69: =IFERROR(BazalniMetabolizemTek,"") -> 1417 | G69: =IFERROR(IF(K68>0,F68*FaktorAktivnosti+IF(ŽelenaTeža="Ohrani",0,IF(ŽelenaTeža="POVEČAJ",-500,IF(ŽelenaTeža="Znižaj",500))),""),"") -> 1698 | H69: =IFERROR(F69*(FaktorAktivnosti),"") -> 2197 | I69: =IFERROR(IF(ŽelenaTeža="Znižaj",G69-H69,H69-G69),"") -> 499 | J69: 23556 | K69: =IFERROR(IF(Standardno,J69/KalorijeNaFunt,J69/KalorijeNaFunt/2.2),"") -> 6.7 | L69: =IFERROR(ŽelenaIzgubljenaInPridobljenaTeža-K69,"") -> 8.27 | M69: =IFERROR(IF(B68<>"",L69/(ŽelenaIzgubljenaInPridobljenaTeža),""),"") -> 55%
B70: 2022-10-12 | D70: 60 | E70: 141.6 | F70: =IFERROR(BazalniMetabolizemTek,"") -> 1417 | G70: =IFERROR(IF(K69>0,F69*FaktorAktivnosti+IF(ŽelenaTeža="Ohrani",0,IF(ŽelenaTeža="POVEČAJ",-500,IF(ŽelenaTeža="Znižaj",500))),""),"") -> 1697 | H70: =IFERROR(F70*(FaktorAktivnosti),"") -> 2196 | I70: =IFERROR(IF(ŽelenaTeža="Znižaj",G70-H70,H70-G70),"") -> 499 | J70: 23057 | K70: =IFERROR(IF(Standardno,J70/KalorijeNaFunt,J70/KalorijeNaFunt/2.2),"") -> 6.6 | L70: =IFERROR(ŽelenaIzgubljenaInPridobljenaTeža-K70,"") -> 8.41 | M70: =IFERROR(IF(B69<>"",L70/(ŽelenaIzgubljenaInPridobljenaTeža),""),"") -> 56%
B71: 2022-10-13 | D71: 61 | E71: 141.4 | F71: =IFERROR(BazalniMetabolizemTek,"") -> 1416 | G71: =IFERROR(IF(K70>0,F70*FaktorAktivnosti+IF(ŽelenaTeža="Ohrani",0,IF(ŽelenaTeža="POVEČAJ",-500,IF(ŽelenaTeža="Znižaj",500))),""),"") -> 1696 | H71: =IFERROR(F71*(FaktorAktivnosti),"") -> 2195 | I71: =IFERROR(IF(ŽelenaTeža="Znižaj",G71-H71,H71-G71),"") -> 499 | J71: 22558 | K71: =IFERROR(IF(Standardno,J71/KalorijeNaFunt,J71/KalorijeNaFunt/2.2),"") -> 6.4 | L71: =IFERROR(ŽelenaIzgubljenaInPridobljenaTeža-K71,"") -> 8.55 | M71: =IFERROR(IF(B70<>"",L71/(ŽelenaIzgubljenaInPridobljenaTeža),""),"") -> 57%
B72: 2022-10-14 | D72: 62 | E72: 141.3 | F72: =IFERROR(BazalniMetabolizemTek,"") -> 1415 | G72: =IFERROR(IF(K71>0,F71*FaktorAktivnosti+IF(ŽelenaTeža="Ohrani",0,IF(ŽelenaTeža="POVEČAJ",-500,IF(ŽelenaTeža="Znižaj",500))),""),"") -> 1695 | H72: =IFERROR(F72*(FaktorAktivnosti),"") -> 2194 | I72: =IFERROR(IF(ŽelenaTeža="Znižaj",G72-H72,H72-G72),"") -> 499 | J72: 22059 | K72: =IFERROR(IF(Standardno,J72/KalorijeNaFunt,J72/KalorijeNaFunt/2.2),"") -> 6.3 | L72: =IFERROR(ŽelenaIzgubljenaInPridobljenaTeža-K72,"") -> 8.70 | M72: =IFERROR(IF(B71<>"",L72/(ŽelenaIzgubljenaInPridobljenaTeža),""),"") -> 58%
B73: 2022-10-15 | D73: 63 | E73: 141.2 | F73: =IFERROR(BazalniMetabolizemTek,"") -> 1415 | G73: =IFERROR(IF(K72>0,F72*FaktorAktivnosti+IF(ŽelenaTeža="Ohrani",0,IF(ŽelenaTeža="POVEČAJ",-500,IF(ŽelenaTeža="Znižaj",500))),""),"") -> 1694 | H73: =IFERROR(F73*(FaktorAktivnosti),"") -> 2193 | I73: =IFERROR(IF(ŽelenaTeža="Znižaj",G73-H73,H73-G73),"") -> 499 | J73: 21560 | K73: =IFERROR(IF(Standardno,J73/KalorijeNaFunt,J73/KalorijeNaFunt/2.2),"") -> 6.2 | L73: =IFERROR(ŽelenaIzgubljenaInPridobljenaTeža-K73,"") -> 8.84 | M73: =IFERROR(IF(B72<>"",L73/(ŽelenaIzgubljenaInPridobljenaTeža),""),"") -> 59%
B74: 2022-10-16 | C74: 10 | D74: 64 | E74: 141.0 | F74: =IFERROR(BazalniMetabolizemTek,"") -> 1414 | G74: =IFERROR(IF(K73>0,F73*FaktorAktivnosti+IF(ŽelenaTeža="Ohrani",0,IF(ŽelenaTeža="POVEČAJ",-500,IF(ŽelenaTeža="Znižaj",500))),""),"") -> 1693 | H74: =IFERROR(F74*(FaktorAktivnosti),"") -> 2192 | I74: =IFERROR(IF(ŽelenaTeža="Znižaj",G74-H74,H74-G74),"") -> 499 | J74: 21061 | K74: =IFERROR(IF(Standardno,J74/KalorijeNaFunt,J74/KalorijeNaFunt/2.2),"") -> 6.0 | L74: =IFERROR(ŽelenaIzgubljenaInPridobljenaTeža-K74,"") -> 8.98 | M74: =IFERROR(IF(B73<>"",L74/(ŽelenaIzgubljenaInPridobljenaTeža),""),"") -> 60%
B75: 2022-10-17 | D75: 65 | E75: 140.9 | F75: =IFERROR(BazalniMetabolizemTek,"") -> 1414 | G75: =IFERROR(IF(K74>0,F74*FaktorAktivnosti+IF(ŽelenaTeža="Ohrani",0,IF(ŽelenaTeža="POVEČAJ",-500,IF(ŽelenaTeža="Znižaj",500))),""),"") -> 1692 | H75: =IFERROR(F75*(FaktorAktivnosti),"") -> 2191 | I75: =IFERROR(IF(ŽelenaTeža="Znižaj",G75-H75,H75-G75),"") -> 499 | J75: 20562 | K75: =IFERROR(IF(Standardno,J75/KalorijeNaFunt,J75/KalorijeNaFunt/2.2),"") -> 5.9 | L75: =IFERROR(ŽelenaIzgubljenaInPridobljenaTeža-K75,"") -> 9.13 | M75: =IFERROR(IF(B74<>"",L75/(ŽelenaIzgubljenaInPridobljenaTeža),""),"") -> 61%
B76: =IFERROR(IF(K75>0,B75+1,""),"") -> 2022-10-18 | D76: =IFERROR(IF(K75>0,D75+1,""),"") -> 66 | E76: =IFERROR(IF($D76<>"",E75-(I75/KalorijeNaFunt),""),"") -> 140.7 | F76: =IFERROR(BazalniMetabolizemTek,"") -> 1413 | G76: =IFERROR(IF(K75>0,F75*FaktorAktivnosti+IF(ŽelenaTeža="Ohrani",0,IF(ŽelenaTeža="POVEČAJ",-500,IF(ŽelenaTeža="Znižaj",500))),""),"") -> 1691 | H76: =IFERROR(F76*(FaktorAktivnosti),"") -> 2190 | I76: =IFERROR(IF(ŽelenaTeža="Znižaj",G76-H76,H76-G76),"") -> 499 | J76: 20062 | K76: =IFERROR(IF(Standardno,J76/KalorijeNaFunt,J76/KalorijeNaFunt/2.2),"") -> 5.7 | L76: =IFERROR(ŽelenaIzgubljenaInPridobljenaTeža-K76,"") -> 9.27 | M76: =IFERROR(IF(B75<>"",L76/(ŽelenaIzgubljenaInPridobljenaTeža),""),"") -> 62%
B77: 2022-10-19 | C77: =IFERROR(IF(D77<>"",IF(MOD(D77,7)=1,(D76/7)+1,""),""),"") ->  | D77: 67 | E77: 140.6 | F77: =IFERROR(BazalniMetabolizemTek,"") -> 1412 | G77: =IFERROR(IF(K76>0,F76*FaktorAktivnosti+IF(ŽelenaTeža="Ohrani",0,IF(ŽelenaTeža="POVEČAJ",-500,IF(ŽelenaTeža="Znižaj",500))),""),"") -> 1690 | H77: =IFERROR(F77*(FaktorAktivnosti),"") -> 2189 | I77: =IFERROR(IF(ŽelenaTeža="Znižaj",G77-H77,H77-G77),"") -> 499 | J77: =IFERROR(J76-I77,"") -> 19563 | K77: =IFERROR(IF(Standardno,J77/KalorijeNaFunt,J77/KalorijeNaFunt/2.2),"") -> 5.6 | L77: =IFERROR(ŽelenaIzgubljenaInPridobljenaTeža-K77,"") -> 9.41 | M77: =IFERROR(IF(B76<>"",L77/(ŽelenaIzgubljenaInPridobljenaTeža),""),"") -> 63%
B78: 2022-10-20 | D78: 68 | E78: 140.4 | F78: =IFERROR(BazalniMetabolizemTek,"") -> 1412 | G78: =IFERROR(IF(K77>0,F77*FaktorAktivnosti+IF(ŽelenaTeža="Ohrani",0,IF(ŽelenaTeža="POVEČAJ",-500,IF(ŽelenaTeža="Znižaj",500))),""),"") -> 1689 | H78: =IFERROR(F78*(FaktorAktivnosti),"") -> 2188 | I78: =IFERROR(IF(ŽelenaTeža="Znižaj",G78-H78,H78-G78),"") -> 499 | J78: 19064 | K78: =IFERROR(IF(Standardno,J78/KalorijeNaFunt,J78/KalorijeNaFunt/2.2),"") -> 5.4 | L78: =IFERROR(ŽelenaIzgubljenaInPridobljenaTeža-K78,"") -> 9.55 | M78: =IFERROR(IF(B77<>"",L78/(ŽelenaIzgubljenaInPridobljenaTeža),""),"") -> 64%
B79: 2022-10-21 | D79: 69 | E79: 140.3 | F79: =IFERROR(BazalniMetabolizemTek,"") -> 1411 | G79: =IFERROR(IF(K78>0,F78*FaktorAktivnosti+IF(ŽelenaTeža="Ohrani",0,IF(ŽelenaTeža="POVEČAJ",-500,IF(ŽelenaTeža="Znižaj",500))),""),"") -> 1688 | H79: =IFERROR(F79*(FaktorAktivnosti),"") -> 2187 | I79: =IFERROR(IF(ŽelenaTeža="Znižaj",G79-H79,H79-G79),"") -> 499 | J79: 18565 | K79: =IFERROR(IF(Standardno,J79/KalorijeNaFunt,J79/KalorijeNaFunt/2.2),"") -> 5.3 | L79: =IFERROR(ŽelenaIzgubljenaInPridobljenaTeža-K79,"") -> 9.70 | M79: =IFERROR(IF(B78<>"",L79/(ŽelenaIzgubljenaInPridobljenaTeža),""),"") -> 65%
B80: 2022-10-22 | D80: 70 | E80: 140.2 | F80: =IFERROR(BazalniMetabolizemTek,"") -> 1410 | G80: =IFERROR(IF(K79>0,F79*FaktorAktivnosti+IF(ŽelenaTeža="Ohrani",0,IF(ŽelenaTeža="POVEČAJ",-500,IF(ŽelenaTeža="Znižaj",500))),""),"") -> 1687 | H80: =IFERROR(F80*(FaktorAktivnosti),"") -> 2186 | I80: =IFERROR(IF(ŽelenaTeža="Znižaj",G80-H80,H80-G80),"") -> 499 | J80: 18066 | K80: =IFERROR(IF(Standardno,J80/KalorijeNaFunt,J80/KalorijeNaFunt/2.2),"") -> 5.2 | L80: =IFERROR(ŽelenaIzgubljenaInPridobljenaTeža-K80,"") -> 9.84 | M80: =IFERROR(IF(B79<>"",L80/(ŽelenaIzgubljenaInPridobljenaTeža),""),"") -> 66%
B81: 2022-10-23 | C81: 11 | D81: 71 | E81: 140.0 | F81: =IFERROR(BazalniMetabolizemTek,"") -> 1410 | G81: =IFERROR(IF(K80>0,F80*FaktorAktivnosti+IF(ŽelenaTeža="Ohrani",0,IF(ŽelenaTeža="POVEČAJ",-500,IF(ŽelenaTeža="Znižaj",500))),""),"") -> 1686 | H81: =IFERROR(F81*(FaktorAktivnosti),"") -> 2185 | I81: =IFERROR(IF(ŽelenaTeža="Znižaj",G81-H81,H81-G81),"") -> 499 | J81: 17567 | K81: =IFERROR(IF(Standardno,J81/KalorijeNaFunt,J81/KalorijeNaFunt/2.2),"") -> 5.0 | L81: =IFERROR(ŽelenaIzgubljenaInPridobljenaTeža-K81,"") -> 9.98 | M81: =IFERROR(IF(B80<>"",L81/(ŽelenaIzgubljenaInPridobljenaTeža),""),"") -> 67%
B82: 2022-10-24 | D82: 72 | E82: 139.9 | F82: =IFERROR(BazalniMetabolizemTek,"") -> 1409 | G82: =IFERROR(IF(K81>0,F81*FaktorAktivnosti+IF(ŽelenaTeža="Ohrani",0,IF(ŽelenaTeža="POVEČAJ",-500,IF(ŽelenaTeža="Znižaj",500))),""),"") -> 1685 | H82: =IFERROR(F82*(FaktorAktivnosti),"") -> 2184 | I82: =IFERROR(IF(ŽelenaTeža="Znižaj",G82-H82,H82-G82),"") -> 499 | J82: 17068 | K82: =IFERROR(IF(Standardno,J82/KalorijeNaFunt,J82/KalorijeNaFunt/2.2),"") -> 4.9 | L82: =IFERROR(ŽelenaIzgubljenaInPridobljenaTeža-K82,"") -> 10.12 | M82: =IFERROR(IF(B81<>"",L82/(ŽelenaIzgubljenaInPridobljenaTeža),""),"") -> 67%
B83: 2022-10-25 | D83: 73 | E83: 139.7 | F83: =IFERROR(BazalniMetabolizemTek,"") -> 1409 | G83: =IFERROR(IF(K82>0,F82*FaktorAktivnosti+IF(ŽelenaTeža="Ohrani",0,IF(ŽelenaTeža="POVEČAJ",-500,IF(ŽelenaTeža="Znižaj",500))),""),"") -> 1684 | H83: =IFERROR(F83*(FaktorAktivnosti),"") -> 2183 | I83: =IFERROR(IF(ŽelenaTeža="Znižaj",G83-H83,H83-G83),"") -> 499 | J83: 16569 | K83: =IFERROR(IF(Standardno,J83/KalorijeNaFunt,J83/KalorijeNaFunt/2.2),"") -> 4.7 | L83: =IFERROR(ŽelenaIzgubljenaInPridobljenaTeža-K83,"") -> 10.27 | M83: =IFERROR(IF(B82<>"",L83/(ŽelenaIzgubljenaInPridobljenaTeža),""),"") -> 68%
B84: 2022-10-26 | D84: 74 | E84: 139.6 | F84: =IFERROR(BazalniMetabolizemTek,"") -> 1408 | G84: =IFERROR(IF(K83>0,F83*FaktorAktivnosti+IF(ŽelenaTeža="Ohrani",0,IF(ŽelenaTeža="POVEČAJ",-500,IF(ŽelenaTeža="Znižaj",500))),""),"") -> 1683 | H84: =IFERROR(F84*(FaktorAktivnosti),"") -> 2182 | I84: =IFERROR(IF(ŽelenaTeža="Znižaj",G84-H84,H84-G84),"") -> 499 | J84: 16070 | K84: =IFERROR(IF(Standardno,J84/KalorijeNaFunt,J84/KalorijeNaFunt/2.2),"") -> 4.6 | L84: =IFERROR(ŽelenaIzgubljenaInPridobljenaTeža-K84,"") -> 10.41 | M84: =IFERROR(IF(B83<>"",L84/(ŽelenaIzgubljenaInPridobljenaTeža),""),"") -> 69%
B85: 2022-10-27 | D85: 75 | E85: 139.4 | F85: =IFERROR(BazalniMetabolizemTek,"") -> 1407 | G85: =IFERROR(IF(K84>0,F84*FaktorAktivnosti+IF(ŽelenaTeža="Ohrani",0,IF(ŽelenaTeža="POVEČAJ",-500,IF(ŽelenaTeža="Znižaj",500))),""),"") -> 1682 | H85: =IFERROR(F85*(FaktorAktivnosti),"") -> 2181 | I85: =IFERROR(IF(ŽelenaTeža="Znižaj",G85-H85,H85-G85),"") -> 499 | J85: 15571 | K85: =IFERROR(IF(Standardno,J85/KalorijeNaFunt,J85/KalorijeNaFunt/2.2),"") -> 4.4 | L85: =IFERROR(ŽelenaIzgubljenaInPridobljenaTeža-K85,"") -> 10.55 | M85: =IFERROR(IF(B84<>"",L85/(ŽelenaIzgubljenaInPridobljenaTeža),""),"") -> 70%
B86: 2022-10-28 | D86: 76 | E86: 139.3 | F86: =IFERROR(BazalniMetabolizemTek,"") -> 1407 | G86: =IFERROR(IF(K85>0,F85*FaktorAktivnosti+IF(ŽelenaTeža="Ohrani",0,IF(ŽelenaTeža="POVEČAJ",-500,IF(ŽelenaTeža="Znižaj",500))),""),"") -> 1681 | H86: =IFERROR(F86*(FaktorAktivnosti),"") -> 2180 | I86: =IFERROR(IF(ŽelenaTeža="Znižaj",G86-H86,H86-G86),"") -> 499 | J86: 15072 | K86: =IFERROR(IF(Standardno,J86/KalorijeNaFunt,J86/KalorijeNaFunt/2.2),"") -> 4.3 | L86: =IFERROR(ŽelenaIzgubljenaInPridobljenaTeža-K86,"") -> 10.69 | M86: =IFERROR(IF(B85<>"",L86/(ŽelenaIzgubljenaInPridobljenaTeža),""),"") -> 71%
B87: 2022-10-29 | D87: 77 | E87: 139.2 | F87: =IFERROR(BazalniMetabolizemTek,"") -> 1406 | G87: =IFERROR(IF(K86>0,F86*FaktorAktivnosti+IF(ŽelenaTeža="Ohrani",0,IF(ŽelenaTeža="POVEČAJ",-500,IF(ŽelenaTeža="Znižaj",500))),""),"") -> 1680 | H87: =IFERROR(F87*(FaktorAktivnosti),"") -> 2179 | I87: =IFERROR(IF(ŽelenaTeža="Znižaj",G87-H87,H87-G87),"") -> 499 | J87: 14573 | K87: =IFERROR(IF(Standardno,J87/KalorijeNaFunt,J87/KalorijeNaFunt/2.2),"") -> 4.2 | L87: =IFERROR(ŽelenaIzgubljenaInPridobljenaTeža-K87,"") -> 10.84 | M87: =IFERROR(IF(B86<>"",L87/(ŽelenaIzgubljenaInPridobljenaTeža),""),"") -> 72%
B88: 2022-10-30 | C88: 12 | D88: 78 | E88: 139.0 | F88: =IFERROR(BazalniMetabolizemTek,"") -> 1405 | G88: =IFERROR(IF(K87>0,F87*FaktorAktivnosti+IF(ŽelenaTeža="Ohrani",0,IF(ŽelenaTeža="POVEČAJ",-500,IF(ŽelenaTeža="Znižaj",500))),""),"") -> 1679 | H88: =IFERROR(F88*(FaktorAktivnosti),"") -> 2178 | I88: =IFERROR(IF(ŽelenaTeža="Znižaj",G88-H88,H88-G88),"") -> 499 | J88: 14074 | K88: =IFERROR(IF(Standardno,J88/KalorijeNaFunt,J88/KalorijeNaFunt/2.2),"") -> 4.0 | L88: =IFERROR(ŽelenaIzgubljenaInPridobljenaTeža-K88,"") -> 10.98 | M88: =IFERROR(IF(B87<>"",L88/(ŽelenaIzgubljenaInPridobljenaTeža),""),"") -> 73%
B89: 2022-10-31 | D89: 79 | E89: 138.9 | F89: =IFERROR(BazalniMetabolizemTek,"") -> 1405 | G89: =IFERROR(IF(K88>0,F88*FaktorAktivnosti+IF(ŽelenaTeža="Ohrani",0,IF(ŽelenaTeža="POVEČAJ",-500,IF(ŽelenaTeža="Znižaj",500))),""),"") -> 1678 | H89: =IFERROR(F89*(FaktorAktivnosti),"") -> 2177 | I89: =IFERROR(IF(ŽelenaTeža="Znižaj",G89-H89,H89-G89),"") -> 499 | J89: 13575 | K89: =IFERROR(IF(Standardno,J89/KalorijeNaFunt,J89/KalorijeNaFunt/2.2),"") -> 3.9 | L89: =IFERROR(ŽelenaIzgubljenaInPridobljenaTeža-K89,"") -> 11.12 | M89: =IFERROR(IF(B88<>"",L89/(ŽelenaIzgubljenaInPridobljenaTeža),""),"") -> 74%
B90: 2022-11-01 | D90: 80 | E90: 138.7 | F90: =IFERROR(BazalniMetabolizemTek,"") -> 1404 | G90: =IFERROR(IF(K89>0,F89*FaktorAktivnosti+IF(ŽelenaTeža="Ohrani",0,IF(ŽelenaTeža="POVEČAJ",-500,IF(ŽelenaTeža="Znižaj",500))),""),"") -> 1677 | H90: =IFERROR(F90*(FaktorAktivnosti),"") -> 2177 | I90: =IFERROR(IF(ŽelenaTeža="Znižaj",G90-H90,H90-G90),"") -> 499 | J90: 13076 | K90: =IFERROR(IF(Standardno,J90/KalorijeNaFunt,J90/KalorijeNaFunt/2.2),"") -> 3.7 | L90: =IFERROR(ŽelenaIzgubljenaInPridobljenaTeža-K90,"") -> 11.26 | M90: =IFERROR(IF(B89<>"",L90/(ŽelenaIzgubljenaInPridobljenaTeža),""),"") -> 75%
B91: 2022-11-02 | D91: 81 | E91: 138.6 | F91: =IFERROR(BazalniMetabolizemTek,"") -> 1404 | G91: =IFERROR(IF(K90>0,F90*FaktorAktivnosti+IF(ŽelenaTeža="Ohrani",0,IF(ŽelenaTeža="POVEČAJ",-500,IF(ŽelenaTeža="Znižaj",500))),""),"") -> 1677 | H91: =IFERROR(F91*(FaktorAktivnosti),"") -> 2176 | I91: =IFERROR(IF(ŽelenaTeža="Znižaj",G91-H91,H91-G91),"") -> 499 | J91: 12577 | K91: =IFERROR(IF(Standardno,J91/KalorijeNaFunt,J91/KalorijeNaFunt/2.2),"") -> 3.6 | L91: =IFERROR(ŽelenaIzgubljenaInPridobljenaTeža-K91,"") -> 11.41 | M91: =IFERROR(IF(B90<>"",L91/(ŽelenaIzgubljenaInPridobljenaTeža),""),"") -> 76%
B92: 2022-11-03 | D92: 82 | E92: 138.5 | F92: =IFERROR(BazalniMetabolizemTek,"") -> 1403 | G92: =IFERROR(IF(K91>0,F91*FaktorAktivnosti+IF(ŽelenaTeža="Ohrani",0,IF(ŽelenaTeža="POVEČAJ",-500,IF(ŽelenaTeža="Znižaj",500))),""),"") -> 1676 | H92: =IFERROR(F92*(FaktorAktivnosti),"") -> 2175 | I92: =IFERROR(IF(ŽelenaTeža="Znižaj",G92-H92,H92-G92),"") -> 499 | J92: 12078 | K92: =IFERROR(IF(Standardno,J92/KalorijeNaFunt,J92/KalorijeNaFunt/2.2),"") -> 3.5 | L92: =IFERROR(ŽelenaIzgubljenaInPridobljenaTeža-K92,"") -> 11.55 | M92: =IFERROR(IF(B91<>"",L92/(ŽelenaIzgubljenaInPridobljenaTeža),""),"") -> 77%
B93: 2022-11-04 | D93: 83 | E93: 138.3 | F93: =IFERROR(BazalniMetabolizemTek,"") -> 1402 | G93: =IFERROR(IF(K92>0,F92*FaktorAktivnosti+IF(ŽelenaTeža="Ohrani",0,IF(ŽelenaTeža="POVEČAJ",-500,IF(ŽelenaTeža="Znižaj",500))),""),"") -> 1675 | H93: =IFERROR(F93*(FaktorAktivnosti),"") -> 2174 | I93: =IFERROR(IF(ŽelenaTeža="Znižaj",G93-H93,H93-G93),"") -> 499 | J93: 11579 | K93: =IFERROR(IF(Standardno,J93/KalorijeNaFunt,J93/KalorijeNaFunt/2.2),"") -> 3.3 | L93: =IFERROR(ŽelenaIzgubljenaInPridobljenaTeža-K93,"") -> 11.69 | M93: =IFERROR(IF(B92<>"",L93/(ŽelenaIzgubljenaInPridobljenaTeža),""),"") -> 78%
B94: 2022-11-05 | D94: 84 | E94: 138.2 | F94: =IFERROR(BazalniMetabolizemTek,"") -> 1402 | G94: =IFERROR(IF(K93>0,F93*FaktorAktivnosti+IF(ŽelenaTeža="Ohrani",0,IF(ŽelenaTeža="POVEČAJ",-500,IF(ŽelenaTeža="Znižaj",500))),""),"") -> 1674 | H94: =IFERROR(F94*(FaktorAktivnosti),"") -> 2173 | I94: =IFERROR(IF(ŽelenaTeža="Znižaj",G94-H94,H94-G94),"") -> 499 | J94: 11080 | K94: =IFERROR(IF(Standardno,J94/KalorijeNaFunt,J94/KalorijeNaFunt/2.2),"") -> 3.2 | L94: =IFERROR(ŽelenaIzgubljenaInPridobljenaTeža-K94,"") -> 11.83 | M94: =IFERROR(IF(B93<>"",L94/(ŽelenaIzgubljenaInPridobljenaTeža),""),"") -> 79%
B95: 2022-11-06 | C95: 13 | D95: 85 | E95: 138.0 | F95: =IFERROR(BazalniMetabolizemTek,"") -> 1401 | G95: =IFERROR(IF(K94>0,F94*FaktorAktivnosti+IF(ŽelenaTeža="Ohrani",0,IF(ŽelenaTeža="POVEČAJ",-500,IF(ŽelenaTeža="Znižaj",500))),""),"") -> 1673 | H95: =IFERROR(F95*(FaktorAktivnosti),"") -> 2172 | I95: =IFERROR(IF(ŽelenaTeža="Znižaj",G95-H95,H95-G95),"") -> 499 | J95: 10581 | K95: =IFERROR(IF(Standardno,J95/KalorijeNaFunt,J95/KalorijeNaFunt/2.2),"") -> 3.0 | L95: =IFERROR(ŽelenaIzgubljenaInPridobljenaTeža-K95,"") -> 11.98 | M95: =IFERROR(IF(B94<>"",L95/(ŽelenaIzgubljenaInPridobljenaTeža),""),"") -> 80%
B96: 2022-11-07 | D96: 86 | E96: 137.9 | F96: =IFERROR(BazalniMetabolizemTek,"") -> 1400 | G96: =IFERROR(IF(K95>0,F95*FaktorAktivnosti+IF(ŽelenaTeža="Ohrani",0,IF(ŽelenaTeža="POVEČAJ",-500,IF(ŽelenaTeža="Znižaj",500))),""),"") -> 1672 | H96: =IFERROR(F96*(FaktorAktivnosti),"") -> 2171 | I96: =IFERROR(IF(ŽelenaTeža="Znižaj",G96-H96,H96-G96),"") -> 499 | J96: 10082 | K96: =IFERROR(IF(Standardno,J96/KalorijeNaFunt,J96/KalorijeNaFunt/2.2),"") -> 2.9 | L96: =IFERROR(ŽelenaIzgubljenaInPridobljenaTeža-K96,"") -> 12.12 | M96: =IFERROR(IF(B95<>"",L96/(ŽelenaIzgubljenaInPridobljenaTeža),""),"") -> 81%
B97: 2022-11-08 | D97: 87 | E97: 137.7 | F97: =IFERROR(BazalniMetabolizemTek,"") -> 1400 | G97: =IFERROR(IF(K96>0,F96*FaktorAktivnosti+IF(ŽelenaTeža="Ohrani",0,IF(ŽelenaTeža="POVEČAJ",-500,IF(ŽelenaTeža="Znižaj",500))),""),"") -> 1671 | H97: =IFERROR(F97*(FaktorAktivnosti),"") -> 2170 | I97: =IFERROR(IF(ŽelenaTeža="Znižaj",G97-H97,H97-G97),"") -> 499 | J97: 9583 | K97: =IFERROR(IF(Standardno,J97/KalorijeNaFunt,J97/KalorijeNaFunt/2.2),"") -> 2.7 | L97: =IFERROR(ŽelenaIzgubljenaInPridobljenaTeža-K97,"") -> 12.26 | M97: =IFERROR(IF(B96<>"",L97/(ŽelenaIzgubljenaInPridobljenaTeža),""),"") -> 82%
B98: 2022-11-09 | D98: 88 | E98: 137.6 | F98: =IFERROR(BazalniMetabolizemTek,"") -> 1399 | G98: =IFERROR(IF(K97>0,F97*FaktorAktivnosti+IF(ŽelenaTeža="Ohrani",0,IF(ŽelenaTeža="POVEČAJ",-500,IF(ŽelenaTeža="Znižaj",500))),""),"") -> 1670 | H98: =IFERROR(F98*(FaktorAktivnosti),"") -> 2169 | I98: =IFERROR(IF(ŽelenaTeža="Znižaj",G98-H98,H98-G98),"") -> 499 | J98: 9084 | K98: =IFERROR(IF(Standardno,J98/KalorijeNaFunt,J98/KalorijeNaFunt/2.2),"") -> 2.6 | L98: =IFERROR(ŽelenaIzgubljenaInPridobljenaTeža-K98,"") -> 12.40 | M98: =IFERROR(IF(B97<>"",L98/(ŽelenaIzgubljenaInPridobljenaTeža),""),"") -> 83%
B99: 2022-11-10 | D99: 89 | E99: 137.5 | F99: =IFERROR(BazalniMetabolizemTek,"") -> 1399 | G99: =IFERROR(IF(K98>0,F98*FaktorAktivnosti+IF(ŽelenaTeža="Ohrani",0,IF(ŽelenaTeža="POVEČAJ",-500,IF(ŽelenaTeža="Znižaj",500))),""),"") -> 1669 | H99: =IFERROR(F99*(FaktorAktivnosti),"") -> 2168 | I99: =IFERROR(IF(ŽelenaTeža="Znižaj",G99-H99,H99-G99),"") -> 499 | J99: 8585 | K99: =IFERROR(IF(Standardno,J99/KalorijeNaFunt,J99/KalorijeNaFunt/2.2),"") -> 2.5 | L99: =IFERROR(ŽelenaIzgubljenaInPridobljenaTeža-K99,"") -> 12.55 | M99: =IFERROR(IF(B98<>"",L99/(ŽelenaIzgubljenaInPridobljenaTeža),""),"") -> 84%
B100: 2022-11-11 | D100: 90 | E100: 137.3 | F100: =IFERROR(BazalniMetabolizemTek,"") -> 1398 | G100: =IFERROR(IF(K99>0,F99*FaktorAktivnosti+IF(ŽelenaTeža="Ohrani",0,IF(ŽelenaTeža="POVEČAJ",-500,IF(ŽelenaTeža="Znižaj",500))),""),"") -> 1668 | H100: =IFERROR(F100*(FaktorAktivnosti),"") -> 2167 | I100: =IFERROR(IF(ŽelenaTeža="Znižaj",G100-H100,H100-G100),"") -> 499 | J100: 8086 | K100: =IFERROR(IF(Standardno,J100/KalorijeNaFunt,J100/KalorijeNaFunt/2.2),"") -> 2.3 | L100: =IFERROR(ŽelenaIzgubljenaInPridobljenaTeža-K100,"") -> 12.69 | M100: =IFERROR(IF(B99<>"",L100/(ŽelenaIzgubljenaInPridobljenaTeža),""),"") -> 85%
B101: 2022-11-12 | D101: 91 | E101: 137.2 | F101: =IFERROR(BazalniMetabolizemTek,"") -> 1397 | G101: =IFERROR(IF(K100>0,F100*FaktorAktivnosti+IF(ŽelenaTeža="Ohrani",0,IF(ŽelenaTeža="POVEČAJ",-500,IF(ŽelenaTeža="Znižaj",500))),""),"") -> 1667 | H101: =IFERROR(F101*(FaktorAktivnosti),"") -> 2166 | I101: =IFERROR(IF(ŽelenaTeža="Znižaj",G101-H101,H101-G101),"") -> 499 | J101: 7587 | K101: =IFERROR(IF(Standardno,J101/KalorijeNaFunt,J101/KalorijeNaFunt/2.2),"") -> 2.2 | L101: =IFERROR(ŽelenaIzgubljenaInPridobljenaTeža-K101,"") -> 12.83 | M101: =IFERROR(IF(B100<>"",L101/(ŽelenaIzgubljenaInPridobljenaTeža),""),"") -> 86%
B102: 2022-11-13 | C102: 14 | D102: 92 | E102: 137.0 | F102: =IFERROR(BazalniMetabolizemTek,"") -> 1397 | G102: =IFERROR(IF(K101>0,F101*FaktorAktivnosti+IF(ŽelenaTeža="Ohrani",0,IF(ŽelenaTeža="POVEČAJ",-500,IF(ŽelenaTeža="Znižaj",500))),""),"") -> 1666 | H102: =IFERROR(F102*(FaktorAktivnosti),"") -> 2165 | I102: =IFERROR(IF(ŽelenaTeža="Znižaj",G102-H102,H102-G102),"") -> 499 | J102: 7087 | K102: =IFERROR(IF(Standardno,J102/KalorijeNaFunt,J102/KalorijeNaFunt/2.2),"") -> 2.0 | L102: =IFERROR(ŽelenaIzgubljenaInPridobljenaTeža-K102,"") -> 12.98 | M102: =IFERROR(IF(B101<>"",L102/(ŽelenaIzgubljenaInPridobljenaTeža),""),"") -> 87%
B103: 2022-11-14 | D103: 93 | E103: 136.9 | F103: =IFERROR(BazalniMetabolizemTek,"") -> 1396 | G103: =IFERROR(IF(K102>0,F102*FaktorAktivnosti+IF(ŽelenaTeža="Ohrani",0,IF(ŽelenaTeža="POVEČAJ",-500,IF(ŽelenaTeža="Znižaj",500))),""),"") -> 1665 | H103: =IFERROR(F103*(FaktorAktivnosti),"") -> 2164 | I103: =IFERROR(IF(ŽelenaTeža="Znižaj",G103-H103,H103-G103),"") -> 499 | J103: 6588 | K103: =IFERROR(IF(Standardno,J103/KalorijeNaFunt,J103/KalorijeNaFunt/2.2),"") -> 1.9 | L103: =IFERROR(ŽelenaIzgubljenaInPridobljenaTeža-K103,"") -> 13.12 | M103: =IFERROR(IF(B102<>"",L103/(ŽelenaIzgubljenaInPridobljenaTeža),""),"") -> 87%
B104: 2022-11-15 | D104: 94 | E104: 136.7 | F104: =IFERROR(BazalniMetabolizemTek,"") -> 1396 | G104: =IFERROR(IF(K103>0,F103*FaktorAktivnosti+IF(ŽelenaTeža="Ohrani",0,IF(ŽelenaTeža="POVEČAJ",-500,IF(ŽelenaTeža="Znižaj",500))),""),"") -> 1664 | H104: =IFERROR(F104*(FaktorAktivnosti),"") -> 2163 | I104: =IFERROR(IF(ŽelenaTeža="Znižaj",G104-H104,H104-G104),"") -> 499 | J104: 6089 | K104: =IFERROR(IF(Standardno,J104/KalorijeNaFunt,J104/KalorijeNaFunt/2.2),"") -> 1.7 | L104: =IFERROR(ŽelenaIzgubljenaInPridobljenaTeža-K104,"") -> 13.26 | M104: =IFERROR(IF(B103<>"",L104/(ŽelenaIzgubljenaInPridobljenaTeža),""),"") -> 88%
B105: 2022-11-16 | D105: 95 | E105: 136.6 | F105: =IFERROR(BazalniMetabolizemTek,"") -> 1395 | G105: =IFERROR(IF(K104>0,F104*FaktorAktivnosti+IF(ŽelenaTeža="Ohrani",0,IF(ŽelenaTeža="POVEČAJ",-500,IF(ŽelenaTeža="Znižaj",500))),""),"") -> 1663 | H105: =IFERROR(F105*(FaktorAktivnosti),"") -> 2162 | I105: =IFERROR(IF(ŽelenaTeža="Znižaj",G105-H105,H105-G105),"") -> 499 | J105: 5590 | K105: =IFERROR(IF(Standardno,J105/KalorijeNaFunt,J105/KalorijeNaFunt/2.2),"") -> 1.6 | L105: =IFERROR(ŽelenaIzgubljenaInPridobljenaTeža-K105,"") -> 13.40 | M105: =IFERROR(IF(B104<>"",L105/(ŽelenaIzgubljenaInPridobljenaTeža),""),"") -> 89%
B106: 2022-11-17 | D106: 96 | E106: 136.5 | F106: =IFERROR(BazalniMetabolizemTek,"") -> 1394 | G106: =IFERROR(IF(K105>0,F105*FaktorAktivnosti+IF(ŽelenaTeža="Ohrani",0,IF(ŽelenaTeža="POVEČAJ",-500,IF(ŽelenaTeža="Znižaj",500))),""),"") -> 1662 | H106: =IFERROR(F106*(FaktorAktivnosti),"") -> 2161 | I106: =IFERROR(IF(ŽelenaTeža="Znižaj",G106-H106,H106-G106),"") -> 499 | J106: 5091 | K106: =IFERROR(IF(Standardno,J106/KalorijeNaFunt,J106/KalorijeNaFunt/2.2),"") -> 1.5 | L106: =IFERROR(ŽelenaIzgubljenaInPridobljenaTeža-K106,"") -> 13.55 | M106: =IFERROR(IF(B105<>"",L106/(ŽelenaIzgubljenaInPridobljenaTeža),""),"") -> 90%
B107: 2022-11-18 | D107: 97 | E107: 136.3 | F107: =IFERROR(BazalniMetabolizemTek,"") -> 1394 | G107: =IFERROR(IF(K106>0,F106*FaktorAktivnosti+IF(ŽelenaTeža="Ohrani",0,IF(ŽelenaTeža="POVEČAJ",-500,IF(ŽelenaTeža="Znižaj",500))),""),"") -> 1661 | H107: =IFERROR(F107*(FaktorAktivnosti),"") -> 2160 | I107: =IFERROR(IF(ŽelenaTeža="Znižaj",G107-H107,H107-G107),"") -> 499 | J107: 4592 | K107: =IFERROR(IF(Standardno,J107/KalorijeNaFunt,J107/KalorijeNaFunt/2.2),"") -> 1.3 | L107: =IFERROR(ŽelenaIzgubljenaInPridobljenaTeža-K107,"") -> 13.69 | M107: =IFERROR(IF(B106<>"",L107/(ŽelenaIzgubljenaInPridobljenaTeža),""),"") -> 91%
B108: 2022-11-19 | D108: 98 | E108: 136.2 | F108: =IFERROR(BazalniMetabolizemTek,"") -> 1393 | G108: =IFERROR(IF(K107>0,F107*FaktorAktivnosti+IF(ŽelenaTeža="Ohrani",0,IF(ŽelenaTeža="POVEČAJ",-500,IF(ŽelenaTeža="Znižaj",500))),""),"") -> 1660 | H108: =IFERROR(F108*(FaktorAktivnosti),"") -> 2159 | I108: =IFERROR(IF(ŽelenaTeža="Znižaj",G108-H108,H108-G108),"") -> 499 | J108: 4093 | K108: =IFERROR(IF(Standardno,J108/KalorijeNaFunt,J108/KalorijeNaFunt/2.2),"") -> 1.2 | L108: =IFERROR(ŽelenaIzgubljenaInPridobljenaTeža-K108,"") -> 13.83 | M108: =IFERROR(IF(B107<>"",L108/(ŽelenaIzgubljenaInPridobljenaTeža),""),"") -> 92%
B109: 2022-11-20 | C109: 15 | D109: 99 | E109: 136.0 | F109: =IFERROR(BazalniMetabolizemTek,"") -> 1392 | G109: =IFERROR(IF(K108>0,F108*FaktorAktivnosti+IF(ŽelenaTeža="Ohrani",0,IF(ŽelenaTeža="POVEČAJ",-500,IF(ŽelenaTeža="Znižaj",500))),""),"") -> 1659 | H109: =IFERROR(F109*(FaktorAktivnosti),"") -> 2158 | I109: =IFERROR(IF(ŽelenaTeža="Znižaj",G109-H109,H109-G109),"") -> 499 | J109: 3594 | K109: =IFERROR(IF(Standardno,J109/KalorijeNaFunt,J109/KalorijeNaFunt/2.2),"") -> 1.0 | L109: =IFERROR(ŽelenaIzgubljenaInPridobljenaTeža-K109,"") -> 13.97 | M109: =IFERROR(IF(B108<>"",L109/(ŽelenaIzgubljenaInPridobljenaTeža),""),"") -> 93%
B110: 2022-11-21 | D110: 100 | E110: 135.9 | F110: =IFERROR(BazalniMetabolizemTek,"") -> 1392 | G110: =IFERROR(IF(K109>0,F109*FaktorAktivnosti+IF(ŽelenaTeža="Ohrani",0,IF(ŽelenaTeža="POVEČAJ",-500,IF(ŽelenaTeža="Znižaj",500))),""),"") -> 1658 | H110: =IFERROR(F110*(FaktorAktivnosti),"") -> 2157 | I110: =IFERROR(IF(ŽelenaTeža="Znižaj",G110-H110,H110-G110),"") -> 499 | J110: 3095 | K110: =IFERROR(IF(Standardno,J110/KalorijeNaFunt,J110/KalorijeNaFunt/2.2),"") -> 0.9 | L110: =IFERROR(ŽelenaIzgubljenaInPridobljenaTeža-K110,"") -> 14.12 | M110: =IFERROR(IF(B109<>"",L110/(ŽelenaIzgubljenaInPridobljenaTeža),""),"") -> 94%
B111: 2022-11-22 | D111: 101 | E111: 135.7 | F111: =IFERROR(BazalniMetabolizemTek,"") -> 1391 | G111: =IFERROR(IF(K110>0,F110*FaktorAktivnosti+IF(ŽelenaTeža="Ohrani",0,IF(ŽelenaTeža="POVEČAJ",-500,IF(ŽelenaTeža="Znižaj",500))),""),"") -> 1657 | H111: =IFERROR(F111*(FaktorAktivnosti),"") -> 2156 | I111: =IFERROR(IF(ŽelenaTeža="Znižaj",G111-H111,H111-G111),"") -> 499 | J111: 2596 | K111: =IFERROR(IF(Standardno,J111/KalorijeNaFunt,J111/KalorijeNaFunt/2.2),"") -> 0.7 | L111: =IFERROR(ŽelenaIzgubljenaInPridobljenaTeža-K111,"") -> 14.26 | M111: =IFERROR(IF(B110<>"",L111/(ŽelenaIzgubljenaInPridobljenaTeža),""),"") -> 95%
B112: 2022-11-23 | D112: 102 | E112: 135.6 | F112: =IFERROR(BazalniMetabolizemTek,"") -> 1391 | G112: =IFERROR(IF(K111>0,F111*FaktorAktivnosti+IF(ŽelenaTeža="Ohrani",0,IF(ŽelenaTeža="POVEČAJ",-500,IF(ŽelenaTeža="Znižaj",500))),""),"") -> 1656 | H112: =IFERROR(F112*(FaktorAktivnosti),"") -> 2155 | I112: =IFERROR(IF(ŽelenaTeža="Znižaj",G112-H112,H112-G112),"") -> 499 | J112: 2097 | K112: =IFERROR(IF(Standardno,J112/KalorijeNaFunt,J112/KalorijeNaFunt/2.2),"") -> 0.6 | L112: =IFERROR(ŽelenaIzgubljenaInPridobljenaTeža-K112,"") -> 14.40 | M112: =IFERROR(IF(B111<>"",L112/(ŽelenaIzgubljenaInPridobljenaTeža),""),"") -> 96%
B113: 2022-11-24 | D113: 103 | E113: 135.5 | F113: =IFERROR(BazalniMetabolizemTek,"") -> 1390 | G113: =IFERROR(IF(K112>0,F112*FaktorAktivnosti+IF(ŽelenaTeža="Ohrani",0,IF(ŽelenaTeža="POVEČAJ",-500,IF(ŽelenaTeža="Znižaj",500))),""),"") -> 1655 | H113: =IFERROR(F113*(FaktorAktivnosti),"") -> 2154 | I113: =IFERROR(IF(ŽelenaTeža="Znižaj",G113-H113,H113-G113),"") -> 499 | J113: 1598 | K113: =IFERROR(IF(Standardno,J113/KalorijeNaFunt,J113/KalorijeNaFunt/2.2),"") -> 0.5 | L113: =IFERROR(ŽelenaIzgubljenaInPridobljenaTeža-K113,"") -> 14.54 | M113: =IFERROR(IF(B112<>"",L113/(ŽelenaIzgubljenaInPridobljenaTeža),""),"") -> 97%
B114: 2022-11-25 | D114: 104 | E114: 135.3 | F114: =IFERROR(BazalniMetabolizemTek,"") -> 1389 | G114: =IFERROR(IF(K113>0,F113*FaktorAktivnosti+IF(ŽelenaTeža="Ohrani",0,IF(ŽelenaTeža="POVEČAJ",-500,IF(ŽelenaTeža="Znižaj",500))),""),"") -> 1654 | H114: =IFERROR(F114*(FaktorAktivnosti),"") -> 2153 | I114: =IFERROR(IF(ŽelenaTeža="Znižaj",G114-H114,H114-G114),"") -> 499 | J114: 1099 | K114: =IFERROR(IF(Standardno,J114/KalorijeNaFunt,J114/KalorijeNaFunt/2.2),"") -> 0.3 | L114: =IFERROR(ŽelenaIzgubljenaInPridobljenaTeža-K114,"") -> 14.69 | M114: =IFERROR(IF(B113<>"",L114/(ŽelenaIzgubljenaInPridobljenaTeža),""),"") -> 98%
B115: 2022-11-26 | D115: 105 | E115: 135.2 | F115: =IFERROR(BazalniMetabolizemTek,"") -> 1389 | G115: =IFERROR(IF(K114>0,F114*FaktorAktivnosti+IF(ŽelenaTeža="Ohrani",0,IF(ŽelenaTeža="POVEČAJ",-500,IF(ŽelenaTeža="Znižaj",500))),""),"") -> 1653 | H115: =IFERROR(F115*(FaktorAktivnosti),"") -> 2152 | I115: =IFERROR(IF(ŽelenaTeža="Znižaj",G115-H115,H115-G115),"") -> 499 | J115: 600 | K115: =IFERROR(IF(Standardno,J115/KalorijeNaFunt,J115/KalorijeNaFunt/2.2),"") -> 0.2 | L115: =IFERROR(ŽelenaIzgubljenaInPridobljenaTeža-K115,"") -> 14.83 | M115: =IFERROR(IF(B114<>"",L115/(ŽelenaIzgubljenaInPridobljenaTeža),""),"") -> 99%
B116: 2022-11-27 | C116: 16 | D116: 106 | E116: 135.0 | F116: =IFERROR(BazalniMetabolizemTek,"") -> 1388 | G116: =IFERROR(IF(K115>0,F115*FaktorAktivnosti+IF(ŽelenaTeža="Ohrani",0,IF(ŽelenaTeža="POVEČAJ",-500,IF(ŽelenaTeža="Znižaj",500))),""),"") -> 1652 | H116: =IFERROR(F116*(FaktorAktivnosti),"") -> 2152 | I116: =IFERROR(IF(ŽelenaTeža="Znižaj",G116-H116,H116-G116),"") -> 499 | J116: 101 | K116: =IFERROR(IF(Standardno,J116/KalorijeNaFunt,J116/KalorijeNaFunt/2.2),"") -> 0.0 | L116: =IFERROR(ŽelenaIzgubljenaInPridobljenaTeža-K116,"") -> 14.97 | M116: =IFERROR(IF(B115<>"",L116/(ŽelenaIzgubljenaInPridobljenaTeža),""),"") -> 100%
B117: 2022-11-28 | D117: 107 | E117: 134.9 | F117: =IFERROR(BazalniMetabolizemTek,"") -> 1387 | G117: =IFERROR(IF(K116>0,F116*FaktorAktivnosti+IF(ŽelenaTeža="Ohrani",0,IF(ŽelenaTeža="POVEČAJ",-500,IF(ŽelenaTeža="Znižaj",500))),""),"") -> 1652 | H117: =IFERROR(F117*(FaktorAktivnosti),"") -> 2151 | I117: =IFERROR(IF(ŽelenaTeža="Znižaj",G117-H117,H117-G117),"") -> 499 | J117: -398 | K117: =IFERROR(IF(Standardno,J117/KalorijeNaFunt,J117/KalorijeNaFunt/2.2),"") -> -0.1 | L117: =IFERROR(ŽelenaIzgubljenaInPridobljenaTeža-K117,"") -> 15.11 | M117: =IFERROR(IF(B116<>"",L117/(ŽelenaIzgubljenaInPridobljenaTeža),""),"") -> 101%
F118: =IFERROR(BazalniMetabolizemTek,"") ->  | G118: =IFERROR(IF(K117>0,F117*FaktorAktivnosti+IF(ŽelenaTeža="Ohrani",0,IF(ŽelenaTeža="POVEČAJ",-500,IF(ŽelenaTeža="Znižaj",500))),""),"") ->  | H118: =IFERROR(F118*(FaktorAktivnosti),"") ->  | I118: =IFERROR(IF(ŽelenaTeža="Znižaj",G118-H118,H118-G118),"") ->  | K118: =IFERROR(IF(Standardno,J118/KalorijeNaFunt,J118/KalorijeNaFunt/2.2),"") ->  | L118: =IFERROR(ŽelenaIzgubljenaInPridobljenaTeža-K118,"") ->  | M118: =IFERROR(IF(B117<>"",L118/(ŽelenaIzgubljenaInPridobljenaTeža),""),"") -> 
F119: =IFERROR(BazalniMetabolizemTek,"") ->  | G119: =IFERROR(IF(K118>0,F118*FaktorAktivnosti+IF(ŽelenaTeža="Ohrani",0,IF(ŽelenaTeža="POVEČAJ",-500,IF(ŽelenaTeža="Znižaj",500))),""),"") ->  | H119: =IFERROR(F119*(FaktorAktivnosti),"") ->  | I119: =IFERROR(IF(ŽelenaTeža="Znižaj",G119-H119,H119-G119),"") ->  | K119: =IFERROR(IF(Standardno,J119/KalorijeNaFunt,J119/KalorijeNaFunt/2.2),"") ->  | L119: =IFERROR(ŽelenaIzgubljenaInPridobljenaTeža-K119,"") ->  | M119: =IFERROR(IF(B118<>"",L119/(ŽelenaIzgubljenaInPridobljenaTeža),""),"") -> 
F120: =IFERROR(BazalniMetabolizemTek,"") ->  | G120: =IFERROR(IF(K119>0,F119*FaktorAktivnosti+IF(ŽelenaTeža="Ohrani",0,IF(ŽelenaTeža="POVEČAJ",-500,IF(ŽelenaTeža="Znižaj",500))),""),"") ->  | H120: =IFERROR(F120*(FaktorAktivnosti),"") ->  | I120: =IFERROR(IF(ŽelenaTeža="Znižaj",G120-H120,H120-G120),"") ->  | K120: =IFERROR(IF(Standardno,J120/KalorijeNaFunt,J120/KalorijeNaFunt/2.2),"") ->  | L120: =IFERROR(ŽelenaIzgubljenaInPridobljenaTeža-K120,"") ->  | M120: =IFERROR(IF(B119<>"",L120/(ŽelenaIzgubljenaInPridobljenaTeža),""),"") -> 
F121: =IFERROR(BazalniMetabolizemTek,"") ->  | G121: =IFERROR(IF(K120>0,F120*FaktorAktivnosti+IF(ŽelenaTeža="Ohrani",0,IF(ŽelenaTeža="POVEČAJ",-500,IF(ŽelenaTeža="Znižaj",500))),""),"") ->  | H121: =IFERROR(F121*(FaktorAktivnosti),"") ->  | I121: =IFERROR(IF(ŽelenaTeža="Znižaj",G121-H121,H121-G121),"") ->  | K121: =IFERROR(IF(Standardno,J121/KalorijeNaFunt,J121/KalorijeNaFunt/2.2),"") ->  | L121: =IFERROR(ŽelenaIzgubljenaInPridobljenaTeža-K121,"") ->  | M121: =IFERROR(IF(B120<>"",L121/(ŽelenaIzgubljenaInPridobljenaTeža),""),"") -> 
F122: =IFERROR(BazalniMetabolizemTek,"") ->  | G122: =IFERROR(IF(K121>0,F121*FaktorAktivnosti+IF(ŽelenaTeža="Ohrani",0,IF(ŽelenaTeža="POVEČAJ",-500,IF(ŽelenaTeža="Znižaj",500))),""),"") ->  | H122: =IFERROR(F122*(FaktorAktivnosti),"") ->  | I122: =IFERROR(IF(ŽelenaTeža="Znižaj",G122-H122,H122-G122),"") ->  | K122: =IFERROR(IF(Standardno,J122/KalorijeNaFunt,J122/KalorijeNaFunt/2.2),"") ->  | L122: =IFERROR(ŽelenaIzgubljenaInPridobljenaTeža-K122,"") ->  | M122: =IFERROR(IF(B121<>"",L122/(ŽelenaIzgubljenaInPridobljenaTeža),""),"") -> 
F123: =IFERROR(BazalniMetabolizemTek,"") ->  | G123: =IFERROR(IF(K122>0,F122*FaktorAktivnosti+IF(ŽelenaTeža="Ohrani",0,IF(ŽelenaTeža="POVEČAJ",-500,IF(ŽelenaTeža="Znižaj",500))),""),"") ->  | H123: =IFERROR(F123*(FaktorAktivnosti),"") ->  | I123: =IFERROR(IF(ŽelenaTeža="Znižaj",G123-H123,H123-G123),"") ->  | K123: =IFERROR(IF(Standardno,J123/KalorijeNaFunt,J123/KalorijeNaFunt/2.2),"") ->  | L123: =IFERROR(ŽelenaIzgubljenaInPridobljenaTeža-K123,"") ->  | M123: =IFERROR(IF(B122<>"",L123/(ŽelenaIzgubljenaInPridobljenaTeža),""),"") -> 
F124: =IFERROR(BazalniMetabolizemTek,"") ->  | G124: =IFERROR(IF(K123>0,F123*FaktorAktivnosti+IF(ŽelenaTeža="Ohrani",0,IF(ŽelenaTeža="POVEČAJ",-500,IF(ŽelenaTeža="Znižaj",500))),""),"") ->  | H124: =IFERROR(F124*(FaktorAktivnosti),"") ->  | I124: =IFERROR(IF(ŽelenaTeža="Znižaj",G124-H124,H124-G124),"") ->  | K124: =IFERROR(IF(Standardno,J124/KalorijeNaFunt,J124/KalorijeNaFunt/2.2),"") ->  | L124: =IFERROR(ŽelenaIzgubljenaInPridobljenaTeža-K124,"") ->  | M124: =IFERROR(IF(B123<>"",L124/(ŽelenaIzgubljenaInPridobljenaTeža),""),"") -> 
F125: =IFERROR(BazalniMetabolizemTek,"") ->  | G125: =IFERROR(IF(K124>0,F124*FaktorAktivnosti+IF(ŽelenaTeža="Ohrani",0,IF(ŽelenaTeža="POVEČAJ",-500,IF(ŽelenaTeža="Znižaj",500))),""),"") ->  | H125: =IFERROR(F125*(FaktorAktivnosti),"") ->  | I125: =IFERROR(IF(ŽelenaTeža="Znižaj",G125-H125,H125-G125),"") ->  | K125: =IFERROR(IF(Standardno,J125/KalorijeNaFunt,J125/KalorijeNaFunt/2.2),"") ->  | L125: =IFERROR(ŽelenaIzgubljenaInPridobljenaTeža-K125,"") ->  | M125: =IFERROR(IF(B124<>"",L125/(ŽelenaIzgubljenaInPridobljenaTeža),""),"") -> 
F126: =IFERROR(BazalniMetabolizemTek,"") ->  | G126: =IFERROR(IF(K125>0,F125*FaktorAktivnosti+IF(ŽelenaTeža="Ohrani",0,IF(ŽelenaTeža="POVEČAJ",-500,IF(ŽelenaTeža="Znižaj",500))),""),"") ->  | H126: =IFERROR(F126*(FaktorAktivnosti),"") ->  | I126: =IFERROR(IF(ŽelenaTeža="Znižaj",G126-H126,H126-G126),"") ->  | K126: =IFERROR(IF(Standardno,J126/KalorijeNaFunt,J126/KalorijeNaFunt/2.2),"") ->  | L126: =IFERROR(ŽelenaIzgubljenaInPridobljenaTeža-K126,"") ->  | M126: =IFERROR(IF(B125<>"",L126/(ŽelenaIzgubljenaInPridobljenaTeža),""),"") -> 
F127: =IFERROR(BazalniMetabolizemTek,"") ->  | G127: =IFERROR(IF(K126>0,F126*FaktorAktivnosti+IF(ŽelenaTeža="Ohrani",0,IF(ŽelenaTeža="POVEČAJ",-500,IF(ŽelenaTeža="Znižaj",500))),""),"") ->  | H127: =IFERROR(F127*(FaktorAktivnosti),"") ->  | I127: =IFERROR(IF(ŽelenaTeža="Znižaj",G127-H127,H127-G127),"") ->  | K127: =IFERROR(IF(Standardno,J127/KalorijeNaFunt,J127/KalorijeNaFunt/2.2),"") ->  | L127: =IFERROR(ŽelenaIzgubljenaInPridobljenaTeža-K127,"") ->  | M127: =IFERROR(IF(B126<>"",L127/(ŽelenaIzgubljenaInPridobljenaTeža),""),"") -> 
F128: =IFERROR(BazalniMetabolizemTek,"") ->  | G128: =IFERROR(IF(K127>0,F127*FaktorAktivnosti+IF(ŽelenaTeža="Ohrani",0,IF(ŽelenaTeža="POVEČAJ",-500,IF(ŽelenaTeža="Znižaj",500))),""),"") ->  | H128: =IFERROR(F128*(FaktorAktivnosti),"") ->  | I128: =IFERROR(IF(ŽelenaTeža="Znižaj",G128-H128,H128-G128),"") ->  | K128: =IFERROR(IF(Standardno,J128/KalorijeNaFunt,J128/KalorijeNaFunt/2.2),"") ->  | L128: =IFERROR(ŽelenaIzgubljenaInPridobljenaTeža-K128,"") ->  | M128: =IFERROR(IF(B127<>"",L128/(ŽelenaIzgubljenaInPridobljenaTeža),""),"") -> 
F129: =IFERROR(BazalniMetabolizemTek,"") ->  | G129: =IFERROR(IF(K128>0,F128*FaktorAktivnosti+IF(ŽelenaTeža="Ohrani",0,IF(ŽelenaTeža="POVEČAJ",-500,IF(ŽelenaTeža="Znižaj",500))),""),"") ->  | H129: =IFERROR(F129*(FaktorAktivnosti),"") ->  | I129: =IFERROR(IF(ŽelenaTeža="Znižaj",G129-H129,H129-G129),"") ->  | K129: =IFERROR(IF(Standardno,J129/KalorijeNaFunt,J129/KalorijeNaFunt/2.2),"") ->  | L129: =IFERROR(ŽelenaIzgubljenaInPridobljenaTeža-K129,"") ->  | M129: =IFERROR(IF(B128<>"",L129/(ŽelenaIzgubljenaInPridobljenaTeža),""),"") -> 
F130: =IFERROR(BazalniMetabolizemTek,"") ->  | G130: =IFERROR(IF(K129>0,F129*FaktorAktivnosti+IF(ŽelenaTeža="Ohrani",0,IF(ŽelenaTeža="POVEČAJ",-500,IF(ŽelenaTeža="Znižaj",500))),""),"") ->  | H130: =IFERROR(F130*(FaktorAktivnosti),"") ->  | I130: =IFERROR(IF(ŽelenaTeža="Znižaj",G130-H130,H130-G130),"") ->  | K130: =IFERROR(IF(Standardno,J130/KalorijeNaFunt,J130/KalorijeNaFunt/2.2),"") ->  | L130: =IFERROR(ŽelenaIzgubljenaInPridobljenaTeža-K130,"") ->  | M130: =IFERROR(IF(B129<>"",L130/(ŽelenaIzgubljenaInPridobljenaTeža),""),"") -> 
F131: =IFERROR(BazalniMetabolizemTek,"") ->  | G131: =IFERROR(IF(K130>0,F130*FaktorAktivnosti+IF(ŽelenaTeža="Ohrani",0,IF(ŽelenaTeža="POVEČAJ",-500,IF(ŽelenaTeža="Znižaj",500))),""),"") ->  | H131: =IFERROR(F131*(FaktorAktivnosti),"") ->  | I131: =IFERROR(IF(ŽelenaTeža="Znižaj",G131-H131,H131-G131),"") ->  | K131: =IFERROR(IF(Standardno,J131/KalorijeNaFunt,J131/KalorijeNaFunt/2.2),"") ->  | L131: =IFERROR(ŽelenaIzgubljenaInPridobljenaTeža-K131,"") ->  | M131: =IFERROR(IF(B130<>"",L131/(ŽelenaIzgubljenaInPridobljenaTeža),""),"") -> 
F132: =IFERROR(BazalniMetabolizemTek,"") ->  | G132: =IFERROR(IF(K131>0,F131*FaktorAktivnosti+IF(ŽelenaTeža="Ohrani",0,IF(ŽelenaTeža="POVEČAJ",-500,IF(ŽelenaTeža="Znižaj",500))),""),"") ->  | H132: =IFERROR(F132*(FaktorAktivnosti),"") ->  | I132: =IFERROR(IF(ŽelenaTeža="Znižaj",G132-H132,H132-G132),"") ->  | K132: =IFERROR(IF(Standardno,J132/KalorijeNaFunt,J132/KalorijeNaFunt/2.2),"") ->  | L132: =IFERROR(ŽelenaIzgubljenaInPridobljenaTeža-K132,"") ->  | M132: =IFERROR(IF(B131<>"",L132/(ŽelenaIzgubljenaInPridobljenaTeža),""),"") -> 
F133: =IFERROR(BazalniMetabolizemTek,"") ->  | G133: =IFERROR(IF(K132>0,F132*FaktorAktivnosti+IF(ŽelenaTeža="Ohrani",0,IF(ŽelenaTeža="POVEČAJ",-500,IF(ŽelenaTeža="Znižaj",500))),""),"") ->  | H133: =IFERROR(F133*(FaktorAktivnosti),"") ->  | I133: =IFERROR(IF(ŽelenaTeža="Znižaj",G133-H133,H133-G133),"") ->  | K133: =IFERROR(IF(Standardno,J133/KalorijeNaFunt,J133/KalorijeNaFunt/2.2),"") ->  | L133: =IFERROR(ŽelenaIzgubljenaInPridobljenaTeža-K133,"") ->  | M133: =IFERROR(IF(B132<>"",L133/(ŽelenaIzgubljenaInPridobljenaTeža),""),"") -> 
F134: =IFERROR(BazalniMetabolizemTek,"") ->  | G134: =IFERROR(IF(K133>0,F133*FaktorAktivnosti+IF(ŽelenaTeža="Ohrani",0,IF(ŽelenaTeža="POVEČAJ",-500,IF(ŽelenaTeža="Znižaj",500))),""),"") ->  | H134: =IFERROR(F134*(FaktorAktivnosti),"") ->  | I134: =IFERROR(IF(ŽelenaTeža="Znižaj",G134-H134,H134-G134),"") ->  | K134: =IFERROR(IF(Standardno,J134/KalorijeNaFunt,J134/KalorijeNaFunt/2.2),"") ->  | L134: =IFERROR(ŽelenaIzgubljenaInPridobljenaTeža-K134,"") ->  | M134: =IFERROR(IF(B133<>"",L134/(ŽelenaIzgubljenaInPridobljenaTeža),""),"") -> 
F135: =IFERROR(BazalniMetabolizemTek,"") ->  | G135: =IFERROR(IF(K134>0,F134*FaktorAktivnosti+IF(ŽelenaTeža="Ohrani",0,IF(ŽelenaTeža="POVEČAJ",-500,IF(ŽelenaTeža="Znižaj",500))),""),"") ->  | H135: =IFERROR(F135*(FaktorAktivnosti),"") ->  | I135: =IFERROR(IF(ŽelenaTeža="Znižaj",G135-H135,H135-G135),"") ->  | K135: =IFERROR(IF(Standardno,J135/KalorijeNaFunt,J135/KalorijeNaFunt/2.2),"") ->  | L135: =IFERROR(ŽelenaIzgubljenaInPridobljenaTeža-K135,"") ->  | M135: =IFERROR(IF(B134<>"",L135/(ŽelenaIzgubljenaInPridobljenaTeža),""),"") -> 
F136: =IFERROR(BazalniMetabolizemTek,"") ->  | G136: =IFERROR(IF(K135>0,F135*FaktorAktivnosti+IF(ŽelenaTeža="Ohrani",0,IF(ŽelenaTeža="POVEČAJ",-500,IF(ŽelenaTeža="Znižaj",500))),""),"") ->  | H136: =IFERROR(F136*(FaktorAktivnosti),"") ->  | I136: =IFERROR(IF(ŽelenaTeža="Znižaj",G136-H136,H136-G136),"") ->  | K136: =IFERROR(IF(Standardno,J136/KalorijeNaFunt,J136/KalorijeNaFunt/2.2),"") ->  | L136: =IFERROR(ŽelenaIzgubljenaInPridobljenaTeža-K136,"") ->  | M136: =IFERROR(IF(B135<>"",L136/(ŽelenaIzgubljenaInPridobljenaTeža),""),"") -> 
F137: =IFERROR(BazalniMetabolizemTek,"") ->  | G137: =IFERROR(IF(K136>0,F136*FaktorAktivnosti+IF(ŽelenaTeža="Ohrani",0,IF(ŽelenaTeža="POVEČAJ",-500,IF(ŽelenaTeža="Znižaj",500))),""),"") ->  | H137: =IFERROR(F137*(FaktorAktivnosti),"") ->  | I137: =IFERROR(IF(ŽelenaTeža="Znižaj",G137-H137,H137-G137),"") ->  | K137: =IFERROR(IF(Standardno,J137/KalorijeNaFunt,J137/KalorijeNaFunt/2.2),"") ->  | L137: =IFERROR(ŽelenaIzgubljenaInPridobljenaTeža-K137,"") ->  | M137: =IFERROR(IF(B136<>"",L137/(ŽelenaIzgubljenaInPridobljenaTeža),""),"") -> 
F138: =IFERROR(BazalniMetabolizemTek,"") ->  | G138: =IFERROR(IF(K137>0,F137*FaktorAktivnosti+IF(ŽelenaTeža="Ohrani",0,IF(ŽelenaTeža="POVEČAJ",-500,IF(ŽelenaTeža="Znižaj",500))),""),"") ->  | H138: =IFERROR(F138*(FaktorAktivnosti),"") ->  | I138: =IFERROR(IF(ŽelenaTeža="Znižaj",G138-H138,H138-G138),"") ->  | K138: =IFERROR(IF(Standardno,J138/KalorijeNaFunt,J138/KalorijeNaFunt/2.2),"") ->  | L138: =IFERROR(ŽelenaIzgubljenaInPridobljenaTeža-K138,"") ->  | M138: =IFERROR(IF(B137<>"",L138/(ŽelenaIzgubljenaInPridobljenaTeža),""),"") -> 
F139: =IFERROR(BazalniMetabolizemTek,"") ->  | G139: =IFERROR(IF(K138>0,F138*FaktorAktivnosti+IF(ŽelenaTeža="Ohrani",0,IF(ŽelenaTeža="POVEČAJ",-500,IF(ŽelenaTeža="Znižaj",500))),""),"") ->  | H139: =IFERROR(F139*(FaktorAktivnosti),"") ->  | I139: =IFERROR(IF(ŽelenaTeža="Znižaj",G139-H139,H139-G139),"") ->  | K139: =IFERROR(IF(Standardno,J139/KalorijeNaFunt,J139/KalorijeNaFunt/2.2),"") ->  | L139: =IFERROR(ŽelenaIzgubljenaInPridobljenaTeža-K139,"") ->  | M139: =IFERROR(IF(B138<>"",L139/(ŽelenaIzgubljenaInPridobljenaTeža),""),"") -> 
B140: =IFERROR(IF(K139>0,B139+1,""),"") ->  | D140: =IFERROR(IF(K139>0,D139+1,""),"") ->  | E140: =IFERROR(IF($D140<>"",E139-(I139/KalorijeNaFunt),""),"") ->  | F140: =IFERROR(BazalniMetabolizemTek,"") ->  | G140: =IFERROR(IF(K139>0,F139*FaktorAktivnosti+IF(ŽelenaTeža="Ohrani",0,IF(ŽelenaTeža="POVEČAJ",-500,IF(ŽelenaTeža="Znižaj",500))),""),"") ->  | H140: =IFERROR(F140*(FaktorAktivnosti),"") ->  | I140: =IFERROR(IF(ŽelenaTeža="Znižaj",G140-H140,H140-G140),"") ->  | K140: =IFERROR(IF(Standardno,J140/KalorijeNaFunt,J140/KalorijeNaFunt/2.2),"") ->  | L140: =IFERROR(ŽelenaIzgubljenaInPridobljenaTeža-K140,"") ->  | M140: =IFERROR(IF(B139<>"",L140/(ŽelenaIzgubljenaInPridobljenaTeža),""),"") -> 
C141: =IFERROR(IF(D141<>"",IF(MOD(D141,7)=1,(D140/7)+1,""),""),"") ->  | F141: =IFERROR(BazalniMetabolizemTek,"") ->  | G141: =IFERROR(IF(K140>0,F140*FaktorAktivnosti+IF(ŽelenaTeža="Ohrani",0,IF(ŽelenaTeža="POVEČAJ",-500,IF(ŽelenaTeža="Znižaj",500))),""),"") ->  | H141: =IFERROR(F141*(FaktorAktivnosti),"") ->  | I141: =IFERROR(IF(ŽelenaTeža="Znižaj",G141-H141,H141-G141),"") ->  | J141: =IFERROR(J140-I141,"") ->  | K141: =IFERROR(IF(Standardno,J141/KalorijeNaFunt,J141/KalorijeNaFunt/2.2),"") ->  | L141: =IFERROR(ŽelenaIzgubljenaInPridobljenaTeža-K141,"") ->  | M141: =IFERROR(IF(B140<>"",L141/(ŽelenaIzgubljenaInPridobljenaTeža),""),"") -> 
F142: =IFERROR(BazalniMetabolizemTek,"") ->  | G142: =IFERROR(IF(K141>0,F141*FaktorAktivnosti+IF(ŽelenaTeža="Ohrani",0,IF(ŽelenaTeža="POVEČAJ",-500,IF(ŽelenaTeža="Znižaj",500))),""),"") ->  | H142: =IFERROR(F142*(FaktorAktivnosti),"") ->  | I142: =IFERROR(IF(ŽelenaTeža="Znižaj",G142-H142,H142-G142),"") ->  | K142: =IFERROR(IF(Standardno,J142/KalorijeNaFunt,J142/KalorijeNaFunt/2.2),"") ->  | L142: =IFERROR(ŽelenaIzgubljenaInPridobljenaTeža-K142,"") ->  | M142: =IFERROR(IF(B141<>"",L142/(ŽelenaIzgubljenaInPridobljenaTeža),""),"") -> 
F143: =IFERROR(BazalniMetabolizemTek,"") ->  | G143: =IFERROR(IF(K142>0,F142*FaktorAktivnosti+IF(ŽelenaTeža="Ohrani",0,IF(ŽelenaTeža="POVEČAJ",-500,IF(ŽelenaTeža="Znižaj",500))),""),"") ->  | H143: =IFERROR(F143*(FaktorAktivnosti),"") ->  | I143: =IFERROR(IF(ŽelenaTeža="Znižaj",G143-H143,H143-G143),"") ->  | K143: =IFERROR(IF(Standardno,J143/KalorijeNaFunt,J143/KalorijeNaFunt/2.2),"") ->  | L143: =IFERROR(ŽelenaIzgubljenaInPridobljenaTeža-K143,"") ->  | M143: =IFERROR(IF(B142<>"",L143/(ŽelenaIzgubljenaInPridobljenaTeža),""),"") -> 
F144: =IFERROR(BazalniMetabolizemTek,"") ->  | G144: =IFERROR(IF(K143>0,F143*FaktorAktivnosti+IF(ŽelenaTeža="Ohrani",0,IF(ŽelenaTeža="POVEČAJ",-500,IF(ŽelenaTeža="Znižaj",500))),""),"") ->  | H144: =IFERROR(F144*(FaktorAktivnosti),"") ->  | I144: =IFERROR(IF(ŽelenaTeža="Znižaj",G144-H144,H144-G144),"") ->  | K144: =IFERROR(IF(Standardno,J144/KalorijeNaFunt,J144/KalorijeNaFunt/2.2),"") ->  | L144: =IFERROR(ŽelenaIzgubljenaInPridobljenaTeža-K144,"") ->  | M144: =IFERROR(IF(B143<>"",L144/(ŽelenaIzgubljenaInPridobljenaTeža),""),"") -> 
F145: =IFERROR(BazalniMetabolizemTek,"") ->  | G145: =IFERROR(IF(K144>0,F144*FaktorAktivnosti+IF(ŽelenaTeža="Ohrani",0,IF(ŽelenaTeža="POVEČAJ",-500,IF(ŽelenaTeža="Znižaj",500))),""),"") ->  | H145: =IFERROR(F145*(FaktorAktivnosti),"") ->  | I145: =IFERROR(IF(ŽelenaTeža="Znižaj",G145-H145,H145-G145),"") ->  | K145: =IFERROR(IF(Standardno,J145/KalorijeNaFunt,J145/KalorijeNaFunt/2.2),"") ->  | L145: =IFERROR(ŽelenaIzgubljenaInPridobljenaTeža-K145,"") ->  | M145: =IFERROR(IF(B144<>"",L145/(ŽelenaIzgubljenaInPridobljenaTeža),""),"") -> 
F146: =IFERROR(BazalniMetabolizemTek,"") ->  | G146: =IFERROR(IF(K145>0,F145*FaktorAktivnosti+IF(ŽelenaTeža="Ohrani",0,IF(ŽelenaTeža="POVEČAJ",-500,IF(ŽelenaTeža="Znižaj",500))),""),"") ->  | H146: =IFERROR(F146*(FaktorAktivnosti),"") ->  | I146: =IFERROR(IF(ŽelenaTeža="Znižaj",G146-H146,H146-G146),"") ->  | K146: =IFERROR(IF(Standardno,J146/KalorijeNaFunt,J146/KalorijeNaFunt/2.2),"") ->  | L146: =IFERROR(ŽelenaIzgubljenaInPridobljenaTeža-K146,"") ->  | M146: =IFERROR(IF(B145<>"",L146/(ŽelenaIzgubljenaInPridobljenaTeža),""),"") -> 
F147: =IFERROR(BazalniMetabolizemTek,"") ->  | G147: =IFERROR(IF(K146>0,F146*FaktorAktivnosti+IF(ŽelenaTeža="Ohrani",0,IF(ŽelenaTeža="POVEČAJ",-500,IF(ŽelenaTeža="Znižaj",500))),""),"") ->  | H147: =IFERROR(F147*(FaktorAktivnosti),"") ->  | I147: =IFERROR(IF(ŽelenaTeža="Znižaj",G147-H147,H147-G147),"") ->  | K147: =IFERROR(IF(Standardno,J147/KalorijeNaFunt,J147/KalorijeNaFunt/2.2),"") ->  | L147: =IFERROR(ŽelenaIzgubljenaInPridobljenaTeža-K147,"") ->  | M147: =IFERROR(IF(B146<>"",L147/(ŽelenaIzgubljenaInPridobljenaTeža),""),"") -> 
F148: =IFERROR(BazalniMetabolizemTek,"") ->  | G148: =IFERROR(IF(K147>0,F147*FaktorAktivnosti+IF(ŽelenaTeža="Ohrani",0,IF(ŽelenaTeža="POVEČAJ",-500,IF(ŽelenaTeža="Znižaj",500))),""),"") ->  | H148: =IFERROR(F148*(FaktorAktivnosti),"") ->  | I148: =IFERROR(IF(ŽelenaTeža="Znižaj",G148-H148,H148-G148),"") ->  | K148: =IFERROR(IF(Standardno,J148/KalorijeNaFunt,J148/KalorijeNaFunt/2.2),"") ->  | L148: =IFERROR(ŽelenaIzgubljenaInPridobljenaTeža-K148,"") ->  | M148: =IFERROR(IF(B147<>"",L148/(ŽelenaIzgubljenaInPridobljenaTeža),""),"") -> 
F149: =IFERROR(BazalniMetabolizemTek,"") ->  | G149: =IFERROR(IF(K148>0,F148*FaktorAktivnosti+IF(ŽelenaTeža="Ohrani",0,IF(ŽelenaTeža="POVEČAJ",-500,IF(ŽelenaTeža="Znižaj",500))),""),"") ->  | H149: =IFERROR(F149*(FaktorAktivnosti),"") ->  | I149: =IFERROR(IF(ŽelenaTeža="Znižaj",G149-H149,H149-G149),"") ->  | K149: =IFERROR(IF(Standardno,J149/KalorijeNaFunt,J149/KalorijeNaFunt/2.2),"") ->  | L149: =IFERROR(ŽelenaIzgubljenaInPridobljenaTeža-K149,"") ->  | M149: =IFERROR(IF(B148<>"",L149/(ŽelenaIzgubljenaInPridobljenaTeža),""),"") -> 
F150: =IFERROR(BazalniMetabolizemTek,"") ->  | G150: =IFERROR(IF(K149>0,F149*FaktorAktivnosti+IF(ŽelenaTeža="Ohrani",0,IF(ŽelenaTeža="POVEČAJ",-500,IF(ŽelenaTeža="Znižaj",500))),""),"") ->  | H150: =IFERROR(F150*(FaktorAktivnosti),"") ->  | I150: =IFERROR(IF(ŽelenaTeža="Znižaj",G150-H150,H150-G150),"") ->  | K150: =IFERROR(IF(Standardno,J150/KalorijeNaFunt,J150/KalorijeNaFunt/2.2),"") ->  | L150: =IFERROR(ŽelenaIzgubljenaInPridobljenaTeža-K150,"") ->  | M150: =IFERROR(IF(B149<>"",L150/(ŽelenaIzgubljenaInPridobljenaTeža),""),"") -> 
F151: =IFERROR(BazalniMetabolizemTek,"") ->  | G151: =IFERROR(IF(K150>0,F150*FaktorAktivnosti+IF(ŽelenaTeža="Ohrani",0,IF(ŽelenaTeža="POVEČAJ",-500,IF(ŽelenaTeža="Znižaj",500))),""),"") ->  | H151: =IFERROR(F151*(FaktorAktivnosti),"") ->  | I151: =IFERROR(IF(ŽelenaTeža="Znižaj",G151-H151,H151-G151),"") ->  | K151: =IFERROR(IF(Standardno,J151/KalorijeNaFunt,J151/KalorijeNaFunt/2.2),"") ->  | L151: =IFERROR(ŽelenaIzgubljenaInPridobljenaTeža-K151,"") ->  | M151: =IFERROR(IF(B150<>"",L151/(ŽelenaIzgubljenaInPridobljenaTeža),""),"") -> 
F152: =IFERROR(BazalniMetabolizemTek,"") ->  | G152: =IFERROR(IF(K151>0,F151*FaktorAktivnosti+IF(ŽelenaTeža="Ohrani",0,IF(ŽelenaTeža="POVEČAJ",-500,IF(ŽelenaTeža="Znižaj",500))),""),"") ->  | H152: =IFERROR(F152*(FaktorAktivnosti),"") ->  | I152: =IFERROR(IF(ŽelenaTeža="Znižaj",G152-H152,H152-G152),"") ->  | K152: =IFERROR(IF(Standardno,J152/KalorijeNaFunt,J152/KalorijeNaFunt/2.2),"") ->  | L152: =IFERROR(ŽelenaIzgubljenaInPridobljenaTeža-K152,"") ->  | M152: =IFERROR(IF(B151<>"",L152/(ŽelenaIzgubljenaInPridobljenaTeža),""),"") -> 
F153: =IFERROR(BazalniMetabolizemTek,"") ->  | G153: =IFERROR(IF(K152>0,F152*FaktorAktivnosti+IF(ŽelenaTeža="Ohrani",0,IF(ŽelenaTeža="POVEČAJ",-500,IF(ŽelenaTeža="Znižaj",500))),""),"") ->  | H153: =IFERROR(F153*(FaktorAktivnosti),"") ->  | I153: =IFERROR(IF(ŽelenaTeža="Znižaj",G153-H153,H153-G153),"") ->  | K153: =IFERROR(IF(Standardno,J153/KalorijeNaFunt,J153/KalorijeNaFunt/2.2),"") ->  | L153: =IFERROR(ŽelenaIzgubljenaInPridobljenaTeža-K153,"") ->  | M153: =IFERROR(IF(B152<>"",L153/(ŽelenaIzgubljenaInPridobljenaTeža),""),"") -> 
F154: =IFERROR(BazalniMetabolizemTek,"") ->  | G154: =IFERROR(IF(K153>0,F153*FaktorAktivnosti+IF(ŽelenaTeža="Ohrani",0,IF(ŽelenaTeža="POVEČAJ",-500,IF(ŽelenaTeža="Znižaj",500))),""),"") ->  | H154: =IFERROR(F154*(FaktorAktivnosti),"") ->  | I154: =IFERROR(IF(ŽelenaTeža="Znižaj",G154-H154,H154-G154),"") ->  | K154: =IFERROR(IF(Standardno,J154/KalorijeNaFunt,J154/KalorijeNaFunt/2.2),"") ->  | L154: =IFERROR(ŽelenaIzgubljenaInPridobljenaTeža-K154,"") ->  | M154: =IFERROR(IF(B153<>"",L154/(ŽelenaIzgubljenaInPridobljenaTeža),""),"") -> 
F155: =IFERROR(BazalniMetabolizemTek,"") ->  | G155: =IFERROR(IF(K154>0,F154*FaktorAktivnosti+IF(ŽelenaTeža="Ohrani",0,IF(ŽelenaTeža="POVEČAJ",-500,IF(ŽelenaTeža="Znižaj",500))),""),"") ->  | H155: =IFERROR(F155*(FaktorAktivnosti),"") ->  | I155: =IFERROR(IF(ŽelenaTeža="Znižaj",G155-H155,H155-G155),"") ->  | K155: =IFERROR(IF(Standardno,J155/KalorijeNaFunt,J155/KalorijeNaFunt/2.2),"") ->  | L155: =IFERROR(ŽelenaIzgubljenaInPridobljenaTeža-K155,"") ->  | M155: =IFERROR(IF(B154<>"",L155/(ŽelenaIzgubljenaInPridobljenaTeža),""),"") -> 
F156: =IFERROR(BazalniMetabolizemTek,"") ->  | G156: =IFERROR(IF(K155>0,F155*FaktorAktivnosti+IF(ŽelenaTeža="Ohrani",0,IF(ŽelenaTeža="POVEČAJ",-500,IF(ŽelenaTeža="Znižaj",500))),""),"") ->  | H156: =IFERROR(F156*(FaktorAktivnosti),"") ->  | I156: =IFERROR(IF(ŽelenaTeža="Znižaj",G156-H156,H156-G156),"") ->  | K156: =IFERROR(IF(Standardno,J156/KalorijeNaFunt,J156/KalorijeNaFunt/2.2),"") ->  | L156: =IFERROR(ŽelenaIzgubljenaInPridobljenaTeža-K156,"") ->  | M156: =IFERROR(IF(B155<>"",L156/(ŽelenaIzgubljenaInPridobljenaTeža),""),"") -> 
F157: =IFERROR(BazalniMetabolizemTek,"") ->  | G157: =IFERROR(IF(K156>0,F156*FaktorAktivnosti+IF(ŽelenaTeža="Ohrani",0,IF(ŽelenaTeža="POVEČAJ",-500,IF(ŽelenaTeža="Znižaj",500))),""),"") ->  | H157: =IFERROR(F157*(FaktorAktivnosti),"") ->  | I157: =IFERROR(IF(ŽelenaTeža="Znižaj",G157-H157,H157-G157),"") ->  | K157: =IFERROR(IF(Standardno,J157/KalorijeNaFunt,J157/KalorijeNaFunt/2.2),"") ->  | L157: =IFERROR(ŽelenaIzgubljenaInPridobljenaTeža-K157,"") ->  | M157: =IFERROR(IF(B156<>"",L157/(ŽelenaIzgubljenaInPridobljenaTeža),""),"") -> 
F158: =IFERROR(BazalniMetabolizemTek,"") ->  | G158: =IFERROR(IF(K157>0,F157*FaktorAktivnosti+IF(ŽelenaTeža="Ohrani",0,IF(ŽelenaTeža="POVEČAJ",-500,IF(ŽelenaTeža="Znižaj",500))),""),"") ->  | H158: =IFERROR(F158*(FaktorAktivnosti),"") ->  | I158: =IFERROR(IF(ŽelenaTeža="Znižaj",G158-H158,H158-G158),"") ->  | K158: =IFERROR(IF(Standardno,J158/KalorijeNaFunt,J158/KalorijeNaFunt/2.2),"") ->  | L158: =IFERROR(ŽelenaIzgubljenaInPridobljenaTeža-K158,"") ->  | M158: =IFERROR(IF(B157<>"",L158/(ŽelenaIzgubljenaInPridobljenaTeža),""),"") -> 
F159: =IFERROR(BazalniMetabolizemTek,"") ->  | G159: =IFERROR(IF(K158>0,F158*FaktorAktivnosti+IF(ŽelenaTeža="Ohrani",0,IF(ŽelenaTeža="POVEČAJ",-500,IF(ŽelenaTeža="Znižaj",500))),""),"") ->  | H159: =IFERROR(F159*(FaktorAktivnosti),"") ->  | I159: =IFERROR(IF(ŽelenaTeža="Znižaj",G159-H159,H159-G159),"") ->  | K159: =IFERROR(IF(Standardno,J159/KalorijeNaFunt,J159/KalorijeNaFunt/2.2),"") ->  | L159: =IFERROR(ŽelenaIzgubljenaInPridobljenaTeža-K159,"") ->  | M159: =IFERROR(IF(B158<>"",L159/(ŽelenaIzgubljenaInPridobljenaTeža),""),"") -> 
F160: =IFERROR(BazalniMetabolizemTek,"") ->  | G160: =IFERROR(IF(K159>0,F159*FaktorAktivnosti+IF(ŽelenaTeža="Ohrani",0,IF(ŽelenaTeža="POVEČAJ",-500,IF(ŽelenaTeža="Znižaj",500))),""),"") ->  | H160: =IFERROR(F160*(FaktorAktivnosti),"") ->  | I160: =IFERROR(IF(ŽelenaTeža="Znižaj",G160-H160,H160-G160),"") ->  | K160: =IFERROR(IF(Standardno,J160/KalorijeNaFunt,J160/KalorijeNaFunt/2.2),"") ->  | L160: =IFERROR(ŽelenaIzgubljenaInPridobljenaTeža-K160,"") ->  | M160: =IFERROR(IF(B159<>"",L160/(ŽelenaIzgubljenaInPridobljenaTeža),""),"") -> 
F161: =IFERROR(BazalniMetabolizemTek,"") ->  | G161: =IFERROR(IF(K160>0,F160*FaktorAktivnosti+IF(ŽelenaTeža="Ohrani",0,IF(ŽelenaTeža="POVEČAJ",-500,IF(ŽelenaTeža="Znižaj",500))),""),"") ->  | H161: =IFERROR(F161*(FaktorAktivnosti),"") ->  | I161: =IFERROR(IF(ŽelenaTeža="Znižaj",G161-H161,H161-G161),"") ->  | K161: =IFERROR(IF(Standardno,J161/KalorijeNaFunt,J161/KalorijeNaFunt/2.2),"") ->  | L161: =IFERROR(ŽelenaIzgubljenaInPridobljenaTeža-K161,"") ->  | M161: =IFERROR(IF(B160<>"",L161/(ŽelenaIzgubljenaInPridobljenaTeža),""),"") -> 
F162: =IFERROR(BazalniMetabolizemTek,"") ->  | G162: =IFERROR(IF(K161>0,F161*FaktorAktivnosti+IF(ŽelenaTeža="Ohrani",0,IF(ŽelenaTeža="POVEČAJ",-500,IF(ŽelenaTeža="Znižaj",500))),""),"") ->  | H162: =IFERROR(F162*(FaktorAktivnosti),"") ->  | I162: =IFERROR(IF(ŽelenaTeža="Znižaj",G162-H162,H162-G162),"") ->  | K162: =IFERROR(IF(Standardno,J162/KalorijeNaFunt,J162/KalorijeNaFunt/2.2),"") ->  | L162: =IFERROR(ŽelenaIzgubljenaInPridobljenaTeža-K162,"") ->  | M162: =IFERROR(IF(B161<>"",L162/(ŽelenaIzgubljenaInPridobljenaTeža),""),"") -> 
F163: =IFERROR(BazalniMetabolizemTek,"") ->  | G163: =IFERROR(IF(K162>0,F162*FaktorAktivnosti+IF(ŽelenaTeža="Ohrani",0,IF(ŽelenaTeža="POVEČAJ",-500,IF(ŽelenaTeža="Znižaj",500))),""),"") ->  | H163: =IFERROR(F163*(FaktorAktivnosti),"") ->  | I163: =IFERROR(IF(ŽelenaTeža="Znižaj",G163-H163,H163-G163),"") ->  | K163: =IFERROR(IF(Standardno,J163/KalorijeNaFunt,J163/KalorijeNaFunt/2.2),"") ->  | L163: =IFERROR(ŽelenaIzgubljenaInPridobljenaTeža-K163,"") ->  | M163: =IFERROR(IF(B162<>"",L163/(ŽelenaIzgubljenaInPridobljenaTeža),""),"") -> 
F164: =IFERROR(BazalniMetabolizemTek,"") ->  | G164: =IFERROR(IF(K163>0,F163*FaktorAktivnosti+IF(ŽelenaTeža="Ohrani",0,IF(ŽelenaTeža="POVEČAJ",-500,IF(ŽelenaTeža="Znižaj",500))),""),"") ->  | H164: =IFERROR(F164*(FaktorAktivnosti),"") ->  | I164: =IFERROR(IF(ŽelenaTeža="Znižaj",G164-H164,H164-G164),"") ->  | K164: =IFERROR(IF(Standardno,J164/KalorijeNaFunt,J164/KalorijeNaFunt/2.2),"") ->  | L164: =IFERROR(ŽelenaIzgubljenaInPridobljenaTeža-K164,"") ->  | M164: =IFERROR(IF(B163<>"",L164/(ŽelenaIzgubljenaInPridobljenaTeža),""),"") -> 
F165: =IFERROR(BazalniMetabolizemTek,"") ->  | G165: =IFERROR(IF(K164>0,F164*FaktorAktivnosti+IF(ŽelenaTeža="Ohrani",0,IF(ŽelenaTeža="POVEČAJ",-500,IF(ŽelenaTeža="Znižaj",500))),""),"") ->  | H165: =IFERROR(F165*(FaktorAktivnosti),"") ->  | I165: =IFERROR(IF(ŽelenaTeža="Znižaj",G165-H165,H165-G165),"") ->  | K165: =IFERROR(IF(Standardno,J165/KalorijeNaFunt,J165/KalorijeNaFunt/2.2),"") ->  | L165: =IFERROR(ŽelenaIzgubljenaInPridobljenaTeža-K165,"") ->  | M165: =IFERROR(IF(B164<>"",L165/(ŽelenaIzgubljenaInPridobljenaTeža),""),"") -> 
F166: =IFERROR(BazalniMetabolizemTek,"") ->  | G166: =IFERROR(IF(K165>0,F165*FaktorAktivnosti+IF(ŽelenaTeža="Ohrani",0,IF(ŽelenaTeža="POVEČAJ",-500,IF(ŽelenaTeža="Znižaj",500))),""),"") ->  | H166: =IFERROR(F166*(FaktorAktivnosti),"") ->  | I166: =IFERROR(IF(ŽelenaTeža="Znižaj",G166-H166,H166-G166),"") ->  | K166: =IFERROR(IF(Standardno,J166/KalorijeNaFunt,J166/KalorijeNaFunt/2.2),"") ->  | L166: =IFERROR(ŽelenaIzgubljenaInPridobljenaTeža-K166,"") ->  | M166: =IFERROR(IF(B165<>"",L166/(ŽelenaIzgubljenaInPridobljenaTeža),""),"") -> 
F167: =IFERROR(BazalniMetabolizemTek,"") ->  | G167: =IFERROR(IF(K166>0,F166*FaktorAktivnosti+IF(ŽelenaTeža="Ohrani",0,IF(ŽelenaTeža="POVEČAJ",-500,IF(ŽelenaTeža="Znižaj",500))),""),"") ->  | H167: =IFERROR(F167*(FaktorAktivnosti),"") ->  | I167: =IFERROR(IF(ŽelenaTeža="Znižaj",G167-H167,H167-G167),"") ->  | K167: =IFERROR(IF(Standardno,J167/KalorijeNaFunt,J167/KalorijeNaFunt/2.2),"") ->  | L167: =IFERROR(ŽelenaIzgubljenaInPridobljenaTeža-K167,"") ->  | M167: =IFERROR(IF(B166<>"",L167/(ŽelenaIzgubljenaInPridobljenaTeža),""),"") -> 
F168: =IFERROR(BazalniMetabolizemTek,"") ->  | G168: =IFERROR(IF(K167>0,F167*FaktorAktivnosti+IF(ŽelenaTeža="Ohrani",0,IF(ŽelenaTeža="POVEČAJ",-500,IF(ŽelenaTeža="Znižaj",500))),""),"") ->  | H168: =IFERROR(F168*(FaktorAktivnosti),"") ->  | I168: =IFERROR(IF(ŽelenaTeža="Znižaj",G168-H168,H168-G168),"") ->  | K168: =IFERROR(IF(Standardno,J168/KalorijeNaFunt,J168/KalorijeNaFunt/2.2),"") ->  | L168: =IFERROR(ŽelenaIzgubljenaInPridobljenaTeža-K168,"") ->  | M168: =IFERROR(IF(B167<>"",L168/(ŽelenaIzgubljenaInPridobljenaTeža),""),"") -> 
F169: =IFERROR(BazalniMetabolizemTek,"") ->  | G169: =IFERROR(IF(K168>0,F168*FaktorAktivnosti+IF(ŽelenaTeža="Ohrani",0,IF(ŽelenaTeža="POVEČAJ",-500,IF(ŽelenaTeža="Znižaj",500))),""),"") ->  | H169: =IFERROR(F169*(FaktorAktivnosti),"") ->  | I169: =IFERROR(IF(ŽelenaTeža="Znižaj",G169-H169,H169-G169),"") ->  | K169: =IFERROR(IF(Standardno,J169/KalorijeNaFunt,J169/KalorijeNaFunt/2.2),"") ->  | L169: =IFERROR(ŽelenaIzgubljenaInPridobljenaTeža-K169,"") ->  | M169: =IFERROR(IF(B168<>"",L169/(ŽelenaIzgubljenaInPridobljenaTeža),""),"") -> 
F170: =IFERROR(BazalniMetabolizemTek,"") ->  | G170: =IFERROR(IF(K169>0,F169*FaktorAktivnosti+IF(ŽelenaTeža="Ohrani",0,IF(ŽelenaTeža="POVEČAJ",-500,IF(ŽelenaTeža="Znižaj",500))),""),"") ->  | H170: =IFERROR(F170*(FaktorAktivnosti),"") ->  | I170: =IFERROR(IF(ŽelenaTeža="Znižaj",G170-H170,H170-G170),"") ->  | K170: =IFERROR(IF(Standardno,J170/KalorijeNaFunt,J170/KalorijeNaFunt/2.2),"") ->  | L170: =IFERROR(ŽelenaIzgubljenaInPridobljenaTeža-K170,"") ->  | M170: =IFERROR(IF(B169<>"",L170/(ŽelenaIzgubljenaInPridobljenaTeža),""),"") -> 
F171: =IFERROR(BazalniMetabolizemTek,"") ->  | G171: =IFERROR(IF(K170>0,F170*FaktorAktivnosti+IF(ŽelenaTeža="Ohrani",0,IF(ŽelenaTeža="POVEČAJ",-500,IF(ŽelenaTeža="Znižaj",500))),""),"") ->  | H171: =IFERROR(F171*(FaktorAktivnosti),"") ->  | I171: =IFERROR(IF(ŽelenaTeža="Znižaj",G171-H171,H171-G171),"") ->  | K171: =IFERROR(IF(Standardno,J171/KalorijeNaFunt,J171/KalorijeNaFunt/2.2),"") ->  | L171: =IFERROR(ŽelenaIzgubljenaInPridobljenaTeža-K171,"") ->  | M171: =IFERROR(IF(B170<>"",L171/(ŽelenaIzgubljenaInPridobljenaTeža),""),"") -> 
F172: =IFERROR(BazalniMetabolizemTek,"") ->  | G172: =IFERROR(IF(K171>0,F171*FaktorAktivnosti+IF(ŽelenaTeža="Ohrani",0,IF(ŽelenaTeža="POVEČAJ",-500,IF(ŽelenaTeža="Znižaj",500))),""),"") ->  | H172: =IFERROR(F172*(FaktorAktivnosti),"") ->  | I172: =IFERROR(IF(ŽelenaTeža="Znižaj",G172-H172,H172-G172),"") ->  | K172: =IFERROR(IF(Standardno,J172/KalorijeNaFunt,J172/KalorijeNaFunt/2.2),"") ->  | L172: =IFERROR(ŽelenaIzgubljenaInPridobljenaTeža-K172,"") ->  | M172: =IFERROR(IF(B171<>"",L172/(ŽelenaIzgubljenaInPridobljenaTeža),""),"") -> 
F173: =IFERROR(BazalniMetabolizemTek,"") ->  | G173: =IFERROR(IF(K172>0,F172*FaktorAktivnosti+IF(ŽelenaTeža="Ohrani",0,IF(ŽelenaTeža="POVEČAJ",-500,IF(ŽelenaTeža="Znižaj",500))),""),"") ->  | H173: =IFERROR(F173*(FaktorAktivnosti),"") ->  | I173: =IFERROR(IF(ŽelenaTeža="Znižaj",G173-H173,H173-G173),"") ->  | K173: =IFERROR(IF(Standardno,J173/KalorijeNaFunt,J173/KalorijeNaFunt/2.2),"") ->  | L173: =IFERROR(ŽelenaIzgubljenaInPridobljenaTeža-K173,"") ->  | M173: =IFERROR(IF(B172<>"",L173/(ŽelenaIzgubljenaInPridobljenaTeža),""),"") -> 
F174: =IFERROR(BazalniMetabolizemTek,"") ->  | G174: =IFERROR(IF(K173>0,F173*FaktorAktivnosti+IF(ŽelenaTeža="Ohrani",0,IF(ŽelenaTeža="POVEČAJ",-500,IF(ŽelenaTeža="Znižaj",500))),""),"") ->  | H174: =IFERROR(F174*(FaktorAktivnosti),"") ->  | I174: =IFERROR(IF(ŽelenaTeža="Znižaj",G174-H174,H174-G174),"") ->  | K174: =IFERROR(IF(Standardno,J174/KalorijeNaFunt,J174/KalorijeNaFunt/2.2),"") ->  | L174: =IFERROR(ŽelenaIzgubljenaInPridobljenaTeža-K174,"") ->  | M174: =IFERROR(IF(B173<>"",L174/(ŽelenaIzgubljenaInPridobljenaTeža),""),"") -> 
F175: =IFERROR(BazalniMetabolizemTek,"") ->  | G175: =IFERROR(IF(K174>0,F174*FaktorAktivnosti+IF(ŽelenaTeža="Ohrani",0,IF(ŽelenaTeža="POVEČAJ",-500,IF(ŽelenaTeža="Znižaj",500))),""),"") ->  | H175: =IFERROR(F175*(FaktorAktivnosti),"") ->  | I175: =IFERROR(IF(ŽelenaTeža="Znižaj",G175-H175,H175-G175),"") ->  | K175: =IFERROR(IF(Standardno,J175/KalorijeNaFunt,J175/KalorijeNaFunt/2.2),"") ->  | L175: =IFERROR(ŽelenaIzgubljenaInPridobljenaTeža-K175,"") ->  | M175: =IFERROR(IF(B174<>"",L175/(ŽelenaIzgubljenaInPridobljenaTeža),""),"") -> 
F176: =IFERROR(BazalniMetabolizemTek,"") ->  | G176: =IFERROR(IF(K175>0,F175*FaktorAktivnosti+IF(ŽelenaTeža="Ohrani",0,IF(ŽelenaTeža="POVEČAJ",-500,IF(ŽelenaTeža="Znižaj",500))),""),"") ->  | H176: =IFERROR(F176*(FaktorAktivnosti),"") ->  | I176: =IFERROR(IF(ŽelenaTeža="Znižaj",G176-H176,H176-G176),"") ->  | K176: =IFERROR(IF(Standardno,J176/KalorijeNaFunt,J176/KalorijeNaFunt/2.2),"") ->  | L176: =IFERROR(ŽelenaIzgubljenaInPridobljenaTeža-K176,"") ->  | M176: =IFERROR(IF(B175<>"",L176/(ŽelenaIzgubljenaInPridobljenaTeža),""),"") -> 
F177: =IFERROR(BazalniMetabolizemTek,"") ->  | G177: =IFERROR(IF(K176>0,F176*FaktorAktivnosti+IF(ŽelenaTeža="Ohrani",0,IF(ŽelenaTeža="POVEČAJ",-500,IF(ŽelenaTeža="Znižaj",500))),""),"") ->  | H177: =IFERROR(F177*(FaktorAktivnosti),"") ->  | I177: =IFERROR(IF(ŽelenaTeža="Znižaj",G177-H177,H177-G177),"") ->  | K177: =IFERROR(IF(Standardno,J177/KalorijeNaFunt,J177/KalorijeNaFunt/2.2),"") ->  | L177: =IFERROR(ŽelenaIzgubljenaInPridobljenaTeža-K177,"") ->  | M177: =IFERROR(IF(B176<>"",L177/(ŽelenaIzgubljenaInPridobljenaTeža),""),"") -> 
F178: =IFERROR(BazalniMetabolizemTek,"") ->  | G178: =IFERROR(IF(K177>0,F177*FaktorAktivnosti+IF(ŽelenaTeža="Ohrani",0,IF(ŽelenaTeža="POVEČAJ",-500,IF(ŽelenaTeža="Znižaj",500))),""),"") ->  | H178: =IFERROR(F178*(FaktorAktivnosti),"") ->  | I178: =IFERROR(IF(ŽelenaTeža="Znižaj",G178-H178,H178-G178),"") ->  | K178: =IFERROR(IF(Standardno,J178/KalorijeNaFunt,J178/KalorijeNaFunt/2.2),"") ->  | L178: =IFERROR(ŽelenaIzgubljenaInPridobljenaTeža-K178,"") ->  | M178: =IFERROR(IF(B177<>"",L178/(ŽelenaIzgubljenaInPridobljenaTeža),""),"") -> 
F179: =IFERROR(BazalniMetabolizemTek,"") ->  | G179: =IFERROR(IF(K178>0,F178*FaktorAktivnosti+IF(ŽelenaTeža="Ohrani",0,IF(ŽelenaTeža="POVEČAJ",-500,IF(ŽelenaTeža="Znižaj",500))),""),"") ->  | H179: =IFERROR(F179*(FaktorAktivnosti),"") ->  | I179: =IFERROR(IF(ŽelenaTeža="Znižaj",G179-H179,H179-G179),"") ->  | K179: =IFERROR(IF(Standardno,J179/KalorijeNaFunt,J179/KalorijeNaFunt/2.2),"") ->  | L179: =IFERROR(ŽelenaIzgubljenaInPridobljenaTeža-K179,"") ->  | M179: =IFERROR(IF(B178<>"",L179/(ŽelenaIzgubljenaInPridobljenaTeža),""),"") -> 
F180: =IFERROR(BazalniMetabolizemTek,"") ->  | G180: =IFERROR(IF(K179>0,F179*FaktorAktivnosti+IF(ŽelenaTeža="Ohrani",0,IF(ŽelenaTeža="POVEČAJ",-500,IF(ŽelenaTeža="Znižaj",500))),""),"") ->  | H180: =IFERROR(F180*(FaktorAktivnosti),"") ->  | I180: =IFERROR(IF(ŽelenaTeža="Znižaj",G180-H180,H180-G180),"") ->  | K180: =IFERROR(IF(Standardno,J180/KalorijeNaFunt,J180/KalorijeNaFunt/2.2),"") ->  | L180: =IFERROR(ŽelenaIzgubljenaInPridobljenaTeža-K180,"") ->  | M180: =IFERROR(IF(B179<>"",L180/(ŽelenaIzgubljenaInPridobljenaTeža),""),"") -> 
F181: =IFERROR(BazalniMetabolizemTek,"") ->  | G181: =IFERROR(IF(K180>0,F180*FaktorAktivnosti+IF(ŽelenaTeža="Ohrani",0,IF(ŽelenaTeža="POVEČAJ",-500,IF(ŽelenaTeža="Znižaj",500))),""),"") ->  | H181: =IFERROR(F181*(FaktorAktivnosti),"") ->  | I181: =IFERROR(IF(ŽelenaTeža="Znižaj",G181-H181,H181-G181),"") ->  | K181: =IFERROR(IF(Standardno,J181/KalorijeNaFunt,J181/KalorijeNaFunt/2.2),"") ->  | L181: =IFERROR(ŽelenaIzgubljenaInPridobljenaTeža-K181,"") ->  | M181: =IFERROR(IF(B180<>"",L181/(ŽelenaIzgubljenaInPridobljenaTeža),""),"") -> 
F182: =IFERROR(BazalniMetabolizemTek,"") ->  | G182: =IFERROR(IF(K181>0,F181*FaktorAktivnosti+IF(ŽelenaTeža="Ohrani",0,IF(ŽelenaTeža="POVEČAJ",-500,IF(ŽelenaTeža="Znižaj",500))),""),"") ->  | H182: =IFERROR(F182*(FaktorAktivnosti),"") ->  | I182: =IFERROR(IF(ŽelenaTeža="Znižaj",G182-H182,H182-G182),"") ->  | K182: =IFERROR(IF(Standardno,J182/KalorijeNaFunt,J182/KalorijeNaFunt/2.2),"") ->  | L182: =IFERROR(ŽelenaIzgubljenaInPridobljenaTeža-K182,"") ->  | M182: =IFERROR(IF(B181<>"",L182/(ŽelenaIzgubljenaInPridobljenaTeža),""),"") -> 
F183: =IFERROR(BazalniMetabolizemTek,"") ->  | G183: =IFERROR(IF(K182>0,F182*FaktorAktivnosti+IF(ŽelenaTeža="Ohrani",0,IF(ŽelenaTeža="POVEČAJ",-500,IF(ŽelenaTeža="Znižaj",500))),""),"") ->  | H183: =IFERROR(F183*(FaktorAktivnosti),"") ->  | I183: =IFERROR(IF(ŽelenaTeža="Znižaj",G183-H183,H183-G183),"") ->  | K183: =IFERROR(IF(Standardno,J183/KalorijeNaFunt,J183/KalorijeNaFunt/2.2),"") ->  | L183: =IFERROR(ŽelenaIzgubljenaInPridobljenaTeža-K183,"") ->  | M183: =IFERROR(IF(B182<>"",L183/(ŽelenaIzgubljenaInPridobljenaTeža),""),"") -> 
F184: =IFERROR(BazalniMetabolizemTek,"") ->  | G184: =IFERROR(IF(K183>0,F183*FaktorAktivnosti+IF(ŽelenaTeža="Ohrani",0,IF(ŽelenaTeža="POVEČAJ",-500,IF(ŽelenaTeža="Znižaj",500))),""),"") ->  | H184: =IFERROR(F184*(FaktorAktivnosti),"") ->  | I184: =IFERROR(IF(ŽelenaTeža="Znižaj",G184-H184,H184-G184),"") ->  | K184: =IFERROR(IF(Standardno,J184/KalorijeNaFunt,J184/KalorijeNaFunt/2.2),"") ->  | L184: =IFERROR(ŽelenaIzgubljenaInPridobljenaTeža-K184,"") ->  | M184: =IFERROR(IF(B183<>"",L184/(ŽelenaIzgubljenaInPridobljenaTeža),""),"") -> 
F185: =IFERROR(BazalniMetabolizemTek,"") ->  | G185: =IFERROR(IF(K184>0,F184*FaktorAktivnosti+IF(ŽelenaTeža="Ohrani",0,IF(ŽelenaTeža="POVEČAJ",-500,IF(ŽelenaTeža="Znižaj",500))),""),"") ->  | H185: =IFERROR(F185*(FaktorAktivnosti),"") ->  | I185: =IFERROR(IF(ŽelenaTeža="Znižaj",G185-H185,H185-G185),"") ->  | K185: =IFERROR(IF(Standardno,J185/KalorijeNaFunt,J185/KalorijeNaFunt/2.2),"") ->  | L185: =IFERROR(ŽelenaIzgubljenaInPridobljenaTeža-K185,"") ->  | M185: =IFERROR(IF(B184<>"",L185/(ŽelenaIzgubljenaInPridobljenaTeža),""),"") -> 
F186: =IFERROR(BazalniMetabolizemTek,"") ->  | G186: =IFERROR(IF(K185>0,F185*FaktorAktivnosti+IF(ŽelenaTeža="Ohrani",0,IF(ŽelenaTeža="POVEČAJ",-500,IF(ŽelenaTeža="Znižaj",500))),""),"") ->  | H186: =IFERROR(F186*(FaktorAktivnosti),"") ->  | I186: =IFERROR(IF(ŽelenaTeža="Znižaj",G186-H186,H186-G186),"") ->  | K186: =IFERROR(IF(Standardno,J186/KalorijeNaFunt,J186/KalorijeNaFunt/2.2),"") ->  | L186: =IFERROR(ŽelenaIzgubljenaInPridobljenaTeža-K186,"") ->  | M186: =IFERROR(IF(B185<>"",L186/(ŽelenaIzgubljenaInPridobljenaTeža),""),"") -> 
F187: =IFERROR(BazalniMetabolizemTek,"") ->  | G187: =IFERROR(IF(K186>0,F186*FaktorAktivnosti+IF(ŽelenaTeža="Ohrani",0,IF(ŽelenaTeža="POVEČAJ",-500,IF(ŽelenaTeža="Znižaj",500))),""),"") ->  | H187: =IFERROR(F187*(FaktorAktivnosti),"") ->  | I187: =IFERROR(IF(ŽelenaTeža="Znižaj",G187-H187,H187-G187),"") ->  | K187: =IFERROR(IF(Standardno,J187/KalorijeNaFunt,J187/KalorijeNaFunt/2.2),"") ->  | L187: =IFERROR(ŽelenaIzgubljenaInPridobljenaTeža-K187,"") ->  | M187: =IFERROR(IF(B186<>"",L187/(ŽelenaIzgubljenaInPridobljenaTeža),""),"") -> 
F188: =IFERROR(BazalniMetabolizemTek,"") ->  | G188: =IFERROR(IF(K187>0,F187*FaktorAktivnosti+IF(ŽelenaTeža="Ohrani",0,IF(ŽelenaTeža="POVEČAJ",-500,IF(ŽelenaTeža="Znižaj",500))),""),"") ->  | H188: =IFERROR(F188*(FaktorAktivnosti),"") ->  | I188: =IFERROR(IF(ŽelenaTeža="Znižaj",G188-H188,H188-G188),"") ->  | K188: =IFERROR(IF(Standardno,J188/KalorijeNaFunt,J188/KalorijeNaFunt/2.2),"") ->  | L188: =IFERROR(ŽelenaIzgubljenaInPridobljenaTeža-K188,"") ->  | M188: =IFERROR(IF(B187<>"",L188/(ŽelenaIzgubljenaInPridobljenaTeža),""),"") -> 
F189: =IFERROR(BazalniMetabolizemTek,"") ->  | G189: =IFERROR(IF(K188>0,F188*FaktorAktivnosti+IF(ŽelenaTeža="Ohrani",0,IF(ŽelenaTeža="POVEČAJ",-500,IF(ŽelenaTeža="Znižaj",500))),""),"") ->  | H189: =IFERROR(F189*(FaktorAktivnosti),"") ->  | I189: =IFERROR(IF(ŽelenaTeža="Znižaj",G189-H189,H189-G189),"") ->  | K189: =IFERROR(IF(Standardno,J189/KalorijeNaFunt,J189/KalorijeNaFunt/2.2),"") ->  | L189: =IFERROR(ŽelenaIzgubljenaInPridobljenaTeža-K189,"") ->  | M189: =IFERROR(IF(B188<>"",L189/(ŽelenaIzgubljenaInPridobljenaTeža),""),"") -> 
F190: =IFERROR(BazalniMetabolizemTek,"") ->  | G190: =IFERROR(IF(K189>0,F189*FaktorAktivnosti+IF(ŽelenaTeža="Ohrani",0,IF(ŽelenaTeža="POVEČAJ",-500,IF(ŽelenaTeža="Znižaj",500))),""),"") ->  | H190: =IFERROR(F190*(FaktorAktivnosti),"") ->  | I190: =IFERROR(IF(ŽelenaTeža="Znižaj",G190-H190,H190-G190),"") ->  | K190: =IFERROR(IF(Standardno,J190/KalorijeNaFunt,J190/KalorijeNaFunt/2.2),"") ->  | L190: =IFERROR(ŽelenaIzgubljenaInPridobljenaTeža-K190,"") ->  | M190: =IFERROR(IF(B189<>"",L190/(ŽelenaIzgubljenaInPridobljenaTeža),""),"") -> 
F191: =IFERROR(BazalniMetabolizemTek,"") ->  | G191: =IFERROR(IF(K190>0,F190*FaktorAktivnosti+IF(ŽelenaTeža="Ohrani",0,IF(ŽelenaTeža="POVEČAJ",-500,IF(ŽelenaTeža="Znižaj",500))),""),"") ->  | H191: =IFERROR(F191*(FaktorAktivnosti),"") ->  | I191: =IFERROR(IF(ŽelenaTeža="Znižaj",G191-H191,H191-G191),"") ->  | K191: =IFERROR(IF(Standardno,J191/KalorijeNaFunt,J191/KalorijeNaFunt/2.2),"") ->  | L191: =IFERROR(ŽelenaIzgubljenaInPridobljenaTeža-K191,"") ->  | M191: =IFERROR(IF(B190<>"",L191/(ŽelenaIzgubljenaInPridobljenaTeža),""),"") -> 
F192: =IFERROR(BazalniMetabolizemTek,"") ->  | G192: =IFERROR(IF(K191>0,F191*FaktorAktivnosti+IF(ŽelenaTeža="Ohrani",0,IF(ŽelenaTeža="POVEČAJ",-500,IF(ŽelenaTeža="Znižaj",500))),""),"") ->  | H192: =IFERROR(F192*(FaktorAktivnosti),"") ->  | I192: =IFERROR(IF(ŽelenaTeža="Znižaj",G192-H192,H192-G192),"") ->  | K192: =IFERROR(IF(Standardno,J192/KalorijeNaFunt,J192/KalorijeNaFunt/2.2),"") ->  | L192: =IFERROR(ŽelenaIzgubljenaInPridobljenaTeža-K192,"") ->  | M192: =IFERROR(IF(B191<>"",L192/(ŽelenaIzgubljenaInPridobljenaTeža),""),"") -> 
F193: =IFERROR(BazalniMetabolizemTek,"") ->  | G193: =IFERROR(IF(K192>0,F192*FaktorAktivnosti+IF(ŽelenaTeža="Ohrani",0,IF(ŽelenaTeža="POVEČAJ",-500,IF(ŽelenaTeža="Znižaj",500))),""),"") ->  | H193: =IFERROR(F193*(FaktorAktivnosti),"") ->  | I193: =IFERROR(IF(ŽelenaTeža="Znižaj",G193-H193,H193-G193),"") ->  | K193: =IFERROR(IF(Standardno,J193/KalorijeNaFunt,J193/KalorijeNaFunt/2.2),"") ->  | L193: =IFERROR(ŽelenaIzgubljenaInPridobljenaTeža-K193,"") ->  | M193: =IFERROR(IF(B192<>"",L193/(ŽelenaIzgubljenaInPridobljenaTeža),""),"") -> 
F194: =IFERROR(BazalniMetabolizemTek,"") ->  | G194: =IFERROR(IF(K193>0,F193*FaktorAktivnosti+IF(ŽelenaTeža="Ohrani",0,IF(ŽelenaTeža="POVEČAJ",-500,IF(ŽelenaTeža="Znižaj",500))),""),"") ->  | H194: =IFERROR(F194*(FaktorAktivnosti),"") ->  | I194: =IFERROR(IF(ŽelenaTeža="Znižaj",G194-H194,H194-G194),"") ->  | K194: =IFERROR(IF(Standardno,J194/KalorijeNaFunt,J194/KalorijeNaFunt/2.2),"") ->  | L194: =IFERROR(ŽelenaIzgubljenaInPridobljenaTeža-K194,"") ->  | M194: =IFERROR(IF(B193<>"",L194/(ŽelenaIzgubljenaInPridobljenaTeža),""),"") -> 
F195: =IFERROR(BazalniMetabolizemTek,"") ->  | G195: =IFERROR(IF(K194>0,F194*FaktorAktivnosti+IF(ŽelenaTeža="Ohrani",0,IF(ŽelenaTeža="POVEČAJ",-500,IF(ŽelenaTeža="Znižaj",500))),""),"") ->  | H195: =IFERROR(F195*(FaktorAktivnosti),"") ->  | I195: =IFERROR(IF(ŽelenaTeža="Znižaj",G195-H195,H195-G195),"") ->  | K195: =IFERROR(IF(Standardno,J195/KalorijeNaFunt,J195/KalorijeNaFunt/2.2),"") ->  | L195: =IFERROR(ŽelenaIzgubljenaInPridobljenaTeža-K195,"") ->  | M195: =IFERROR(IF(B194<>"",L195/(ŽelenaIzgubljenaInPridobljenaTeža),""),"") -> 
F196: =IFERROR(BazalniMetabolizemTek,"") ->  | G196: =IFERROR(IF(K195>0,F195*FaktorAktivnosti+IF(ŽelenaTeža="Ohrani",0,IF(ŽelenaTeža="POVEČAJ",-500,IF(ŽelenaTeža="Znižaj",500))),""),"") ->  | H196: =IFERROR(F196*(FaktorAktivnosti),"") ->  | I196: =IFERROR(IF(ŽelenaTeža="Znižaj",G196-H196,H196-G196),"") ->  | K196: =IFERROR(IF(Standardno,J196/KalorijeNaFunt,J196/KalorijeNaFunt/2.2),"") ->  | L196: =IFERROR(ŽelenaIzgubljenaInPridobljenaTeža-K196,"") ->  | M196: =IFERROR(IF(B195<>"",L196/(ŽelenaIzgubljenaInPridobljenaTeža),""),"") -> 
F197: =IFERROR(BazalniMetabolizemTek,"") ->  | G197: =IFERROR(IF(K196>0,F196*FaktorAktivnosti+IF(ŽelenaTeža="Ohrani",0,IF(ŽelenaTeža="POVEČAJ",-500,IF(ŽelenaTeža="Znižaj",500))),""),"") ->  | H197: =IFERROR(F197*(FaktorAktivnosti),"") ->  | I197: =IFERROR(IF(ŽelenaTeža="Znižaj",G197-H197,H197-G197),"") ->  | K197: =IFERROR(IF(Standardno,J197/KalorijeNaFunt,J197/KalorijeNaFunt/2.2),"") ->  | L197: =IFERROR(ŽelenaIzgubljenaInPridobljenaTeža-K197,"") ->  | M197: =IFERROR(IF(B196<>"",L197/(ŽelenaIzgubljenaInPridobljenaTeža),""),"") -> 
F198: =IFERROR(BazalniMetabolizemTek,"") ->  | G198: =IFERROR(IF(K197>0,F197*FaktorAktivnosti+IF(ŽelenaTeža="Ohrani",0,IF(ŽelenaTeža="POVEČAJ",-500,IF(ŽelenaTeža="Znižaj",500))),""),"") ->  | H198: =IFERROR(F198*(FaktorAktivnosti),"") ->  | I198: =IFERROR(IF(ŽelenaTeža="Znižaj",G198-H198,H198-G198),"") ->  | K198: =IFERROR(IF(Standardno,J198/KalorijeNaFunt,J198/KalorijeNaFunt/2.2),"") ->  | L198: =IFERROR(ŽelenaIzgubljenaInPridobljenaTeža-K198,"") ->  | M198: =IFERROR(IF(B197<>"",L198/(ŽelenaIzgubljenaInPridobljenaTeža),""),"") -> 
F199: =IFERROR(BazalniMetabolizemTek,"") ->  | G199: =IFERROR(IF(K198>0,F198*FaktorAktivnosti+IF(ŽelenaTeža="Ohrani",0,IF(ŽelenaTeža="POVEČAJ",-500,IF(ŽelenaTeža="Znižaj",500))),""),"") ->  | H199: =IFERROR(F199*(FaktorAktivnosti),"") ->  | I199: =IFERROR(IF(ŽelenaTeža="Znižaj",G199-H199,H199-G199),"") ->  | K199: =IFERROR(IF(Standardno,J199/KalorijeNaFunt,J199/KalorijeNaFunt/2.2),"") ->  | L199: =IFERROR(ŽelenaIzgubljenaInPridobljenaTeža-K199,"") ->  | M199: =IFERROR(IF(B198<>"",L199/(ŽelenaIzgubljenaInPridobljenaTeža),""),"") -> 
F200: =IFERROR(BazalniMetabolizemTek,"") ->  | G200: =IFERROR(IF(K199>0,F199*FaktorAktivnosti+IF(ŽelenaTeža="Ohrani",0,IF(ŽelenaTeža="POVEČAJ",-500,IF(ŽelenaTeža="Znižaj",500))),""),"") ->  | H200: =IFERROR(F200*(FaktorAktivnosti),"") ->  | I200: =IFERROR(IF(ŽelenaTeža="Znižaj",G200-H200,H200-G200),"") ->  | K200: =IFERROR(IF(Standardno,J200/KalorijeNaFunt,J200/KalorijeNaFunt/2.2),"") ->  | L200: =IFERROR(ŽelenaIzgubljenaInPridobljenaTeža-K200,"") ->  | M200: =IFERROR(IF(B199<>"",L200/(ŽelenaIzgubljenaInPridobljenaTeža),""),"") -> 
... 798 more rows

Sheet Iskanje vrste vaje (hidden)
B1: Iskanje vrste vadbe
B2: Ta list naj ostane skrit.
B3: VRSTA VADBE | C3: OPIS | D3: FAKTOR
B4: V SEDE | C4: MALO ALI NIČ VAJE | D4: 1.2
B5: LAHKA AKTIVNOST | C5: VADBA 1–2 DNI/TEDEN | D5: 1.375
B6: ZMERNA AKTIVNOST | C6: VADBA 3–5 DNI/TEDEN | D6: 1.55
B7: ZELO AKTIVEN | C7: VADBA 6–7 DNI/TEDEN | D7: 1.725
B8: IZJEMNO AKTIVEN | C8: VADBA 6–7 DNI/TEDEN + FIZIČNA OPRAVILO/2-KRAT TRENING | D8: 1.9
